Workbook

Sheet Tester
C2: Vyplň zelená pole!!! | F2: Vyplň žlutá pole!!!
C3: Vstup | F3: Scénář
C4: Vstup dne | D4: 2020-08-24T15:30:00 | F4: Výstup dne | G4: 2020-08-28T21:59:00
C5: Expirace | D5: 2020-08-28T22:00:00
C6: Dividenda | D6: 0 | F6: Mazací den | G6: -nic- | H6: IV > | I6: 0.1
C7: Úroky | D7: 0.005 | F7: Název analýzy | G7: CBack/0-1020-1/all | H7: IV < | I7: 0.8
F8: Ticker | G8: MCD
C10: Aktuální Cena | D10: 206.940002 | F10: Cena | G10: 211.570007
C11: Impl Volatility | D11: 0.20355881 | F11: Impl Volatility | G11: 0.19455797
C13: Call | E13: cntr | F13: Strike
C14: =(MROUND(D10,2.5))-2.5 -> 205 | D14: =CallCena($D$10,C14,($D$5-$D$4)/365,$D$7,$D$11,$D$6) -> 2.950261922 | E14: 0 | F14: =C14 -> 205 | G14: =CallCena($G$10,F14,($D$5-$G$4)/365,$D$7,$G$11,$D$6) -> 6.57000895
C15: =C14+2.5 -> 207.5 | D15: =CallCena($D$10,C15,($D$5-$D$4)/365,$D$7,$D$11,$D$6) -> 1.559379928 | E15: -1 | F15: =C15 -> 207.5 | G15: =CallCena($G$10,F15,($D$5-$G$4)/365,$D$7,$G$11,$D$6) -> 4.070008974
C16: =C14+5 -> 210 | D16: =CallCena($D$10,C16,($D$5-$D$4)/365,$D$7,$D$11,$D$6) -> 0.6967515633 | E16: 0 | F16: =C16 -> 210 | G16: =CallCena($G$10,F16,($D$5-$G$4)/365,$D$7,$G$11,$D$6) -> 1.570008998
C17: =C14+7.5 -> 212.5 | D17: =CallCena($D$10,C17,($D$5-$D$4)/365,$D$7,$D$11,$D$6) -> 0.2582690533 | E17: 2 | F17: =C17 -> 212.5 | G17: =CallCena($G$10,F17,($D$5-$G$4)/365,$D$7,$G$11,$D$6) -> 8.334236312e-63
C18: =C14+10 -> 215 | D18: =CallCena($D$10,C18,($D$5-$D$4)/365,$D$7,$D$11,$D$6) -> 0.07840966499 | E18: 0 | F18: =C18 -> 215 | G18: =CallCena($G$10,F18,($D$5-$G$4)/365,$D$7,$G$11,$D$6) -> 0
C19: =C14+12.5 -> 217.5 | D19: =CallCena($D$10,C19,($D$5-$D$4)/365,$D$7,$D$11,$D$6) -> 0.01934761532 | E19: -1 | F19: 217.5 | G19: =CallCena($G$10,F19,($D$5-$G$4)/365,$D$7,$G$11,$D$6) -> 0
C20: Put
C21: =(MROUND(D10,2.5))+2.5 -> 210 | D21: =PutCena($D$10,C21,($D$5-$D$4)/365,$D$7,$D$11,$D$6) -> 3.744463964 | E21: 0 | F21: =C21 -> 210 | G21: =PutCena($G$10,F21,($D$5-$G$4)/365,$D$7,$G$11,$D$6) -> 1.536212882e-172
C22: =C21-2.5 -> 207.5 | D22: =PutCena($D$10,C22,($D$5-$D$4)/365,$D$7,$D$11,$D$6) -> 2.107238585 | E22: 0 | F22: =C22 -> 207.5 | G22: =PutCena($G$10,F22,($D$5-$G$4)/365,$D$7,$G$11,$D$6) -> 0
C23: =C21-5 -> 205 | D23: =PutCena($D$10,C23,($D$5-$D$4)/365,$D$7,$D$11,$D$6) -> 0.998266837 | E23: 0 | F23: =C23 -> 205 | G23: =PutCena($G$10,F23,($D$5-$G$4)/365,$D$7,$G$11,$D$6) -> 0
C24: =C21-7.5 -> 202.5 | D24: =PutCena($D$10,C24,($D$5-$D$4)/365,$D$7,$D$11,$D$6) -> 0.3844213729 | E24: 0 | F24: =C24 -> 202.5 | G24: =PutCena($G$10,F24,($D$5-$G$4)/365,$D$7,$G$11,$D$6) -> 0
C25: =C21-10 -> 200 | D25: =PutCena($D$10,C25,($D$5-$D$4)/365,$D$7,$D$11,$D$6) -> 0.1165201678 | E25: 0 | F25: =C25 -> 200 | G25: =PutCena($G$10,F25,($D$5-$G$4)/365,$D$7,$G$11,$D$6) -> 0
C26: =C21-12.5 -> 197.5 | D26: =PutCena($D$10,C26,($D$5-$D$4)/365,$D$7,$D$11,$D$6) -> 0.02700578051 | E26: 0 | F26: 197.5 | G26: =PutCena($G$10,F26,($D$5-$G$4)/365,$D$7,$G$11,$D$6) -> 0
C28: Teoret. vstup | D28: =(((E14*D14)+(E15*D15)+(E16*D16)+(E17*D17)+(E18*D18)+(E19*D19))*-100) +(((E21*D21)+(E22*D22)+(E23*D23)+(E24*D24)+(E25*D25)+(E26*D26))*-100) -> 106.2189436 | F28: Teoret. výstup | G28: =(((G14*E14)+(G15*E15)+(G16*E16)+(G17*E17)+(G18*E18)+(G19*E19))*100)+(((G21*E21)+(G22*E22)+(G23*E23)+(G24*E24)+(G25*E25)+(G26*E26))*100) -> -407.0008974 | H28: P/L | I28: =(D28+G28) -> -300.7819538
C29: Reálný vstup | D29: =D28 -> 106.2189436 | F29: Reálný výstup | H29: P/L | I29: =(D29+G28) -> -300.7819538

Sheet Data
G1: =MAX(G4:G764) -> 5.10857538
B3: Date | C3: Open | D3: High | E3: Low | F3: Close | G3: IV Open | H3: IV Close
B4: 2015-08-31 | C4: 95.769997 | D4: 95.879997 | E4: 94.849998 | F4: 95.019997 | G4: 0.23479985 | H4: 0.23352989 | J4: pondělí
B5: 2015-09-04 | C5: 95.050003 | D5: 95.580002 | E5: 94.309998 | F5: 94.849998 | G5: 0.2185761 | H5: 0.22570375 | J5: pátek
B6: 2015-09-14 | C6: 97.360001 | D6: 97.660004 | E6: 96.629997 | F6: 96.970001 | G6: 0.20582887 | H6: 0.2031937 | J6: pondělí
B7: 2015-09-18 | C7: 96.82 | D7: 97.699997 | E7: 96.25 | F7: 97.050003 | G7: 0.1837633 | H7: 0.19387536 | J7: pátek
B8: 2015-09-21 | C8: 97.480003 | D8: 98.169998 | E8: 97.010002 | F8: 97.900002 | G8: 0.20097127 | H8: 0.19404998 | J8: pondělí
B9: 2015-09-25 | C9: 97.889999 | D9: 98.699997 | E9: 97.459999 | F9: 97.589996 | G9: 0.21190881 | H9: 0.21000386 | J9: pátek
B10: 2015-09-28 | C10: 97 | D10: 97.739998 | E10: 95.779999 | F10: 95.959999 | G10: 0.20881328 | H10: 0.23176781 | J10: pondělí
B11: 2015-10-02 | C11: 97.330002 | D11: 99.809998 | E11: 97.129997 | F11: 99.790001 | G11: 0.21067059 | H11: 0.20590824 | J11: pátek
B12: 2015-10-05 | C12: 100.269997 | D12: 101.639999 | E12: 100.199997 | F12: 101.169998 | G12: 0.20520976 | H12: 0.1952247 | J12: pondělí
B13: 2015-10-09 | C13: 103 | D13: 103.440002 | E13: 102.269997 | F13: 102.760002 | G13: 0.213782 | H13: 0.20006642 | J13: pátek
B14: 2015-10-12 | C14: 102.68 | D14: 103.309998 | E14: 102.510002 | F14: 103.239998 | G14: 0.20073315 | H14: 0.19700264 | J14: pondělí
B15: 2015-10-16 | C15: 104.720001 | D15: 105.010002 | E15: 103.410004 | F15: 104.82 | G15: 0.24857892 | H15: 0.24548339 | J15: pátek
B16: 2015-10-19 | C16: 104.239998 | D16: 105.150002 | E16: 104.150002 | F16: 104.489998 | G16: 0.24121315 | H16: 0.23637142 | J16: pondělí
B17: 2015-10-23 | C17: 111.18 | D17: 112.870003 | E17: 111.099998 | F17: 112.589996 | G17: 0.21884597 | H17: 0.21181356 | J17: pátek
B18: 2015-10-26 | C18: 112.230003 | D18: 113.959999 | E18: 111.82 | F18: 112.18 | G18: 0.20959113 | H18: 0.21830623 | J18: pondělí
B19: 2015-10-30 | C19: 112.879997 | D19: 113.290001 | E19: 112.25 | F19: 112.25 | G19: 0.19912983 | H19: 0.19638354 | J19: pátek
B20: 2015-11-02 | C20: 112.459999 | D20: 112.839996 | E20: 111.230003 | F20: 112.110001 | G20: 0.19430398 | H20: 0.19733601 | J20: pondělí
B21: 2015-11-06 | C21: 112.400002 | D21: 113.440002 | E21: 112.160004 | F21: 113.309998 | G21: 0.20049503 | H21: 0.20601936 | J21: pátek
B22: 2015-11-09 | C22: 113.449997 | D22: 113.480003 | E22: 112.400002 | F22: 112.93 | G22: 0.20411442 | H22: 0.22481478 | J22: pondělí
B23: 2015-11-13 | C23: 111.849998 | D23: 112.360001 | E23: 109.910004 | F23: 109.970001 | G23: 0.18558887 | H23: 0.20601936 | J23: pátek
B24: 2015-11-16 | C24: 109.849998 | D24: 111.059998 | E24: 109.599998 | F24: 111.059998 | G24: 0.20747982 | H24: 0.20543201 | J24: pondělí
B25: 2015-11-20 | C25: 113.360001 | D25: 114.169998 | E25: 113.190002 | F25: 113.910004 | G25: 0.18350931 | H25: 0.17565143 | J25: pátek
B26: 2015-11-23 | C26: 114.010002 | D26: 114.900002 | E26: 113.910004 | F26: 114.470001 | G26: 0.17477833 | H26: 0.1686349 | J26: pondělí
B27: 2015-11-27 | C27: 113.709999 | D27: 114.389999 | E27: 113.529999 | F27: 114.230003 | G27: 0.15857046 | H27: 0.15964993 | J27: pátek
B28: 2015-11-30 | C28: 114.379997 | D28: 114.489998 | E28: 113.559998 | F28: 114.160004 | G28: 0.16050715 | H28: 0.15999916 | J28: pondělí
B29: 2015-12-04 | C29: 113.75 | D29: 116.389999 | E29: 113.419998 | F29: 116.199997 | G29: 0.16468214 | H29: 0.14307694 | J29: pátek
B30: 2015-12-07 | C30: 115.809998 | D30: 116.510002 | E30: 115.75 | F30: 116.419998 | G30: 0.14501363 | H30: 0.15026809 | J30: pondělí
B31: 2015-12-11 | C31: 115.860001 | D31: 116.610001 | E31: 115.620003 | F31: 116.080002 | G31: 0.1749847 | H31: 0.19939969 | J31: pátek
B32: 2015-12-14 | C32: 116.169998 | D32: 117.07 | E32: 114.650002 | F32: 116.260002 | G32: 0.20141576 | H32: 0.21308352 | J32: pondělí
B33: 2015-12-18 | C33: 116.739998 | D33: 117.279999 | E33: 115.889999 | F33: 116.660004 | G33: 0.1845094 | H33: 0.18736682 | J33: pátek
B34: 2016-01-04 | C34: 117.25 | D34: 117.730003 | E34: 115.870003 | F34: 117.580002 | G34: 0.25049973 | H34: 0.25518271 | J34: pondělí
B35: 2016-01-08 | C35: 115.75 | D35: 117.470001 | E35: 115.260002 | F35: 115.480003 | G35: 0.26665998 | H35: 0.26710447 | J35: pátek
B36: 2016-01-11 | C36: 115.650002 | D36: 117.059998 | E36: 115.580002 | F36: 116.690002 | G36: 0.26235799 | H36: 0.2725653 | J36: pondělí
B37: 2016-01-15 | C37: 114.260002 | D37: 116.449997 | E37: 114.209999 | F37: 115.18 | G37: 0.27164458 | H37: 0.28570939 | J37: pátek
B38: 2016-01-25 | C38: 121.849998 | D38: 121.900002 | E38: 118.199997 | F38: 119.199997 | G38: 0.25257929 | H38: 0.21586156 | J38: pondělí
B39: 2016-01-29 | C39: 122.769997 | D39: 124.349998 | E39: 122.75 | F39: 123.779999 | G39: 0.18720807 | H39: 0.17474658 | J39: pátek
B40: 2016-02-01 | C40: 123.080002 | D40: 124.830002 | E40: 123.019997 | F40: 124.610001 | G40: 0.17525457 | H40: 0.17352425 | J40: pondělí
B41: 2016-02-05 | C41: 120.650002 | D41: 120.650002 | E41: 114.959999 | F41: 115.400002 | G41: 0.19898696 | H41: 0.23733977 | J41: pátek
B42: 2016-02-08 | C42: 114.050003 | D42: 116.360001 | E42: 112.709999 | F42: 116.050003 | G42: 0.23573644 | H42: 0.25756389 | J42: pondělí
B43: 2016-02-12 | C43: 116.720001 | D43: 118.330002 | E43: 116.099998 | F43: 117.93 | G43: 0.24107028 | H43: 0.22225898 | J43: pátek
B44: 2016-02-22 | C44: 116.529999 | D44: 118.160004 | E44: 116.529999 | F44: 117.669998 | G44: 0.19706614 | H44: 0.18355693 | J44: pondělí
B45: 2016-02-26 | C45: 117.980003 | D45: 118.269997 | E45: 116.169998 | F45: 117.059998 | G45: 0.1757943 | H45: 0.17820723 | J45: pátek
B46: 2016-02-29 | C46: 116.800003 | D46: 118.370003 | E46: 116.709999 | F46: 117.190002 | G46: 0.17755637 | H46: 0.17434972 | J46: pondělí
B47: 2016-03-04 | C47: 116.720001 | D47: 117.449997 | E47: 115.900002 | F47: 117.18 | G47: 0.16955562 | H47: 0.16557112 | J47: pátek
B48: 2016-03-07 | C48: 117.029999 | D48: 117.57 | E48: 116.120003 | F48: 117.150002 | G48: 0.16671408 | H48: 0.16749193 | J48: pondělí
B49: 2016-03-11 | C49: 120.489998 | D49: 122.010002 | E49: 120.360001 | F49: 121.550003 | G49: 0.16928575 | H49: 0.15591942 | J49: pátek
B50: 2016-03-14 | C50: 121.809998 | D50: 123.489998 | E50: 121.449997 | F50: 122.900002 | G50: 0.15696713 | H50: 0.15625278 | J50: pondělí
B51: 2016-03-18 | C51: 123.43 | D51: 124.120003 | E51: 122.75 | F51: 124.080002 | G51: 0.14817266 | H51: 0.14512475 | J51: pátek
B52: 2016-03-28 | C52: 124 | D52: 124.199997 | E52: 123.120003 | F52: 123.169998 | G52: 0.18331882 | H52: 0.18119163 | J52: pondělí
B53: 2016-04-01 | C53: 125.190002 | D53: 127.389999 | E53: 124.870003 | F53: 127.019997 | G53: 0.1749212 | H53: 0.17446084 | J53: pátek
B54: 2016-04-04 | C54: 127.050003 | D54: 127.870003 | E54: 126.879997 | F54: 127.57 | G54: 0.17258765 | H54: 0.18246159 | J54: pondělí
B55: 2016-04-08 | C55: 128.279999 | D55: 128.740005 | E55: 127.279999 | F55: 127.959999 | G55: 0.19251016 | H55: 0.19243078 | J55: pátek
B56: 2016-04-11 | C56: 128.350006 | D56: 128.690002 | E56: 127.449997 | F56: 127.559998 | G56: 0.18912889 | H56: 0.19925682 | J56: pondělí
B57: 2016-04-15 | C57: 127.080002 | D57: 128.039993 | E57: 126.959999 | F57: 127.779999 | G57: 0.20460653 | H57: 0.19600255 | J57: pátek
B58: 2016-04-18 | C58: 127.779999 | D58: 128.910004 | E58: 127.68 | F58: 128.850006 | G58: 0.19100208 | H58: 0.1717463 | J58: pondělí
B59: 2016-04-22 | C59: 128.169998 | D59: 128.399994 | E59: 125.360001 | F59: 125.5 | G59: 0.18947813 | H59: 0.14417228 | J59: pátek
B60: 2016-04-25 | C60: 125.07 | D60: 127.529999 | E60: 125.010002 | F60: 127.459999 | G60: 0.14345793 | H60: 0.13972742 | J60: pondělí
B61: 2016-04-29 | C61: 127.93 | D61: 127.93 | E61: 126.099998 | F61: 126.489998 | G61: 0.13588579 | H61: 0.14680745 | J61: pátek
B62: 2016-05-02 | C62: 126.650002 | D62: 128.220001 | E62: 126.5 | F62: 128.199997 | G62: 0.14829965 | H62: 0.14306106 | J62: pondělí
B63: 2016-05-06 | C63: 129.380005 | D63: 130.580002 | E63: 128.589996 | F63: 130.580002 | G63: 0.15077608 | H63: 0.14687095 | J63: pátek
B64: 2016-05-09 | C64: 130.649994 | D64: 131.5 | E64: 130.350006 | F64: 130.830002 | G64: 0.14834728 | H64: 0.1467757 | J64: pondělí
B65: 2016-05-13 | C65: 129.740005 | D65: 130.160004 | E65: 128.710007 | F65: 128.830002 | G65: 0.15171267 | H65: 0.15545906 | J65: pátek
B66: 2016-05-16 | C66: 128.509995 | D66: 129.729996 | E66: 128.050003 | F66: 129.639999 | G66: 0.15677664 | H66: 0.15537968 | J66: pondělí
B67: 2016-05-20 | C67: 124.739998 | D67: 125 | E67: 122.139999 | F67: 122.559998 | G67: 0.16796817 | H67: 0.1700001 | J67: pátek
B68: 2016-05-23 | C68: 122.760002 | D68: 123.730003 | E68: 122.470001 | F68: 122.809998 | G68: 0.17127007 | H68: 0.1620311 | J68: pondělí
B69: 2016-05-27 | C69: 124.269997 | D69: 124.68 | E69: 123.120003 | F69: 123.25 | G69: 0.14196572 | H69: 0.1411085 | J69: pátek
B70: 2016-06-06 | C70: 121.790001 | D70: 122.169998 | E70: 121.209999 | F70: 122 | G70: 0.14077514 | H70: 0.13731449 | J70: pondělí
B71: 2016-06-10 | C71: 121.800003 | D71: 122.660004 | E71: 121.610001 | F71: 122.360001 | G71: 0.13591754 | H71: 0.14136249 | J71: pátek
B72: 2016-06-13 | C72: 121.949997 | D72: 123.970001 | E72: 121.849998 | F72: 122.989998 | G72: 0.14226734 | H72: 0.1525699 | J72: pondělí
B73: 2016-06-17 | C73: 122.230003 | D73: 122.709999 | E73: 121.419998 | F73: 122.269997 | G73: 0.15307788 | H73: 0.14701382 | J73: pátek
B74: 2016-06-20 | C74: 123.32 | D74: 124.080002 | E74: 123.269997 | F74: 123.419998 | G74: 0.14953786 | H74: 0.13991791 | J74: pondělí
B75: 2016-06-24 | C75: 118.760002 | D75: 121.110001 | E75: 118.290001 | F75: 119.440002 | G75: 0.15271277 | H75: 0.18201711 | J75: pátek
B76: 2016-06-27 | C76: 118.160004 | D76: 118.160004 | E76: 116.080002 | F76: 116.300003 | G76: 0.19076396 | H76: 0.21411536 | J76: pondělí
B77: 2016-07-01 | C77: 119.720001 | D77: 120.860001 | E77: 119.660004 | F77: 120.400002 | G77: 0.17981055 | H77: 0.17631816 | J77: pátek
B78: 2016-07-11 | C78: 121.690002 | D78: 122.120003 | E78: 121.459999 | F78: 122 | G78: 0.16679345 | H78: 0.17254003 | J78: pondělí
B79: 2016-07-15 | C79: 124.419998 | D79: 124.440002 | E79: 123.389999 | F79: 123.610001 | G79: 0.1630312 | H79: 0.15931656 | J79: pátek
B80: 2016-07-18 | C80: 124 | D80: 124 | E80: 123.389999 | F80: 123.800003 | G80: 0.15785611 | H80: 0.16242796 | J80: pondělí
B81: 2016-07-22 | C81: 127.290001 | D81: 128.600006 | E81: 127.290001 | F81: 128.259995 | G81: 0.15987217 | H81: 0.15447484 | J81: pátek
B82: 2016-07-25 | C82: 127.949997 | D82: 127.949997 | E82: 126.860001 | F82: 127.400002 | G82: 0.153062 | H82: 0.16576161 | J82: pondělí
B83: 2016-07-29 | C83: 119.139999 | D83: 119.660004 | E83: 117.43 | F83: 117.650002 | G83: 0.14936324 | H83: 0.14912513 | J83: pátek
B84: 2016-08-01 | C84: 117.879997 | D84: 118.389999 | E84: 117.739998 | F84: 118.010002 | G84: 0.1499506 | H84: 0.1490775 | J84: pondělí
B85: 2016-08-05 | C85: 118.779999 | D85: 119.449997 | E85: 118.599998 | F85: 119.209999 | G85: 0.13829871 | H85: 0.12688494 | J85: pátek
B86: 2016-08-08 | C86: 119.169998 | D86: 119.370003 | E86: 118.199997 | F86: 118.290001 | G86: 0.12759929 | H86: 0.13539368 | J86: pondělí
B87: 2016-08-12 | C87: 119.57 | D87: 120.019997 | E87: 119.279999 | F87: 119.519997 | G87: 0.12264645 | H87: 0.1209955 | J87: pátek
B88: 2016-08-15 | C88: 119.019997 | D88: 119.25 | E88: 118.519997 | F88: 118.519997 | G88: 0.12288457 | H88: 0.12866289 | J88: pondělí
B89: 2016-08-19 | C89: 116.800003 | D89: 116.800003 | E89: 115 | F89: 115.010002 | G89: 0.12634521 | H89: 0.12947249 | J89: pátek
B90: 2016-08-22 | C90: 115 | D90: 115.730003 | E90: 114.650002 | F90: 115.419998 | G90: 0.13113931 | H90: 0.12639283 | J90: pondělí
B91: 2016-08-26 | C91: 115.629997 | D91: 115.720001 | E91: 113.959999 | F91: 114.440002 | G91: 0.12907562 | H91: 0.13026621 | J91: pátek
B92: 2016-08-29 | C92: 114.599998 | D92: 115.650002 | E92: 114.5 | F92: 115.410004 | G92: 0.13126631 | H92: 0.12986935 | J92: pondělí
B93: 2016-09-02 | C93: 115.93 | D93: 116.110001 | E93: 115.699997 | F93: 115.830002 | G93: 0.13252039 | H93: 0.12305918 | J93: pátek
B94: 2016-09-12 | C94: 114.470001 | D94: 116.18 | E94: 114.129997 | F94: 115.949997 | G94: 0.14734718 | H94: 0.14207685 | J94: pondělí
B95: 2016-09-16 | C95: 115.68 | D95: 116.260002 | E95: 114.830002 | F95: 115.279999 | G95: 0.14458502 | H95: 0.14791866 | J95: pátek
B96: 2016-09-19 | C96: 115.830002 | D96: 116.410004 | E96: 114.959999 | F96: 115.209999 | G96: 0.1557448 | H96: 0.15609404 | J96: pondělí
B97: 2016-09-23 | C97: 116.489998 | D97: 117.519997 | E97: 116.349998 | F97: 117.169998 | G97: 0.16039603 | H97: 0.15995154 | J97: pátek
B98: 2016-09-26 | C98: 116.800003 | D98: 116.940002 | E98: 116.279999 | F98: 116.529999 | G98: 0.15844346 | H98: 0.17058746 | J98: pondělí
B99: 2016-09-30 | C99: 114.690002 | D99: 115.709999 | E99: 114.690002 | F99: 115.360001 | G99: 0.18036616 | H99: 0.16911113 | J99: pátek
B100: 2016-10-03 | C100: 115.010002 | D100: 115.150002 | E100: 114.410004 | F100: 114.639999 | G100: 0.16611085 | H100: 0.17366712 | J100: pondělí
B101: 2016-10-07 | C101: 113.970001 | D101: 114.339996 | E101: 113.220001 | F101: 113.449997 | G101: 0.17690552 | H101: 0.1772865 | J101: pátek
B102: 2016-10-10 | C102: 114.209999 | D102: 114.989998 | E102: 114.160004 | F102: 114.709999 | G102: 0.17677852 | H102: 0.17046047 | J102: pondělí
B103: 2016-10-14 | C103: 114.900002 | D103: 115.110001 | E103: 114.07 | F103: 114.089996 | G103: 0.17393698 | H103: 0.18025504 | J103: pátek
B104: 2016-10-17 | C104: 113.910004 | D104: 114.400002 | E104: 112.099998 | F104: 112.410004 | G104: 0.1782866 | H104: 0.18676359 | J104: pondělí
B105: 2016-10-21 | C105: 113.269997 | D105: 114.5 | E105: 112.75 | F105: 113.93 | G105: 0.18689058 | H105: 0.145093 | J105: pátek
B106: 2016-10-24 | C106: 114.25 | D106: 114.5 | E106: 112.639999 | F106: 113.57 | G106: 0.14409291 | H106: 0.13604453 | J106: pondělí
B107: 2016-10-28 | C107: 112.260002 | D107: 112.349998 | E107: 111.529999 | F107: 112.099998 | G107: 0.13909244 | H107: 0.14209272 | J107: pátek
B108: 2016-10-31 | C108: 112.459999 | D108: 112.730003 | E108: 111.790001 | F108: 112.57 | G108: 0.14312456 | H108: 0.14418815 | J108: pondělí
B109: 2016-11-04 | C109: 111.989998 | D109: 112 | E109: 110.830002 | F109: 111.040001 | G109: 0.15491932 | H109: 0.16125325 | J109: pátek
B110: 2016-11-07 | C110: 112 | D110: 113.279999 | E110: 111.879997 | F110: 112.82 | G110: 0.1612215 | H110: 0.14780754 | J110: pondělí
B111: 2016-11-11 | C111: 114.669998 | D111: 114.959999 | E111: 114.169998 | F111: 114.220001 | G111: 0.13863208 | H111: 0.13798122 | J111: pátek
B112: 2016-11-14 | C112: 114.989998 | D112: 118.75 | E112: 114.720001 | F112: 117.860001 | G112: 0.14004491 | H112: 0.1571735 | J112: pondělí
B113: 2016-11-18 | C113: 119.260002 | D113: 120.239998 | E113: 118.910004 | F113: 120 | G113: 0.13688588 | H113: 0.13567942 | J113: pátek
B114: 2016-11-21 | C114: 119.800003 | D114: 120.5 | E114: 118.959999 | F114: 119.5 | G114: 0.13645727 | H114: 0.13123456 | J114: pondělí
B115: 2016-11-25 | C115: 120.080002 | D115: 120.989998 | E115: 119.919998 | F115: 120.660004 | G115: 0.13829871 | H115: 0.13655252 | J115: pátek
B116: 2016-11-28 | C116: 120.379997 | D116: 121.870003 | E116: 120.230003 | F116: 121.82 | G116: 0.13655252 | H116: 0.13721925 | J116: pondělí
B117: 2016-12-02 | C117: 118 | D117: 118.5 | E117: 117.709999 | F117: 118.239998 | G117: 0.15264927 | H117: 0.14712494 | J117: pátek
B118: 2016-12-05 | C118: 119.449997 | D118: 120.339996 | E118: 119.029999 | F118: 119.290001 | G118: 0.14747418 | H118: 0.14861714 | J118: pondělí
B119: 2016-12-09 | C119: 120.57 | D119: 121.269997 | E119: 120.209999 | F119: 121.260002 | G119: 0.15361761 | H119: 0.15291913 | J119: pátek
B120: 2016-12-12 | C120: 121.57 | D120: 122.25 | E120: 121.260002 | F120: 121.739998 | G120: 0.15434784 | H120: 0.15545906 | J120: pondělí
B121: 2016-12-16 | C121: 122.889999 | D121: 123.839996 | E121: 122.540001 | F121: 123.239998 | G121: 0.14991885 | H121: 0.14433103 | J121: pátek
B122: 2016-12-19 | C122: 123.230003 | D122: 123.660004 | E122: 122.769997 | F122: 122.989998 | G122: 0.1452835 | H122: 0.14356905 | J122: pondělí
B123: 2016-12-23 | C123: 123.370003 | D123: 123.830002 | E123: 123.07 | F123: 123.139999 | G123: 0.14566448 | H123: 0.1483949 | J123: pátek
B124: 2017-01-09 | C124: 120.760002 | D124: 121.059998 | E124: 120.330002 | F124: 120.43 | G124: 0.18733507 | H124: 0.18679533 | J124: pondělí
B125: 2017-01-13 | C125: 122.239998 | D125: 122.239998 | E125: 121.099998 | F125: 121.5 | G125: 0.18425541 | H125: 0.181398 | J125: pátek
B126: 2017-01-23 | C126: 121.690002 | D126: 122.080002 | E126: 119.82 | F126: 121.379997 | G126: 0.16449165 | H126: 0.13918768 | J126: pondělí
B127: 2017-01-27 | C127: 122.269997 | D127: 122.989998 | E127: 121.480003 | F127: 122.860001 | G127: 0.12253533 | H127: 0.12459901 | J127: pátek
B128: 2017-01-30 | C128: 122.809998 | D128: 123.209999 | E128: 122.300003 | F128: 123.019997 | G128: 0.12856764 | H128: 0.13771136 | J128: pondělí
B129: 2017-02-03 | C129: 123.309998 | D129: 124.510002 | E129: 123.279999 | F129: 124.239998 | G129: 0.1411085 | H129: 0.13390147 | J129: pátek
B130: 2017-02-06 | C130: 124.089996 | D130: 124.900002 | E130: 123.949997 | F130: 124.449997 | G130: 0.13347286 | H130: 0.13364748 | J130: pondělí
B131: 2017-02-10 | C131: 124.68 | D131: 126.110001 | E131: 124.519997 | F131: 125.82 | G131: 0.12856764 | H131: 0.1178841 | J131: pátek
B132: 2017-02-13 | C132: 126.019997 | D132: 126.68 | E132: 125.489998 | F132: 125.540001 | G132: 0.11799522 | H132: 0.12059864 | J132: pondělí
B133: 2017-02-17 | C133: 126.779999 | D133: 127.879997 | E133: 126.68 | F133: 127.800003 | G133: 0.12321793 | H133: 0.12613884 | J133: pátek
B134: 2017-02-27 | C134: 127.68 | D134: 127.75 | E134: 126.779999 | F134: 126.989998 | G134: 0.12305918 | H134: 0.12926612 | J134: pondělí
B135: 2017-03-03 | C135: 128.229996 | D135: 128.660004 | E135: 127.440002 | F135: 127.900002 | G135: 0.12229721 | H135: 0.12013828 | J135: pátek
B136: 2017-03-06 | C136: 127.900002 | D136: 128.339996 | E136: 127.400002 | F136: 128.029999 | G136: 0.12109075 | H136: 0.1216146 | J136: pondělí
B137: 2017-03-10 | C137: 128.559998 | D137: 128.589996 | E137: 127.720001 | F137: 127.980003 | G137: 0.11880482 | H137: 0.11150254 | J137: pátek
B138: 2017-03-13 | C138: 128.009995 | D138: 128.270004 | E138: 127.349998 | F138: 127.610001 | G138: 0.11004209 | H138: 0.11075644 | J138: pondělí
B139: 2017-03-17 | C139: 128.570007 | D139: 129.979996 | E139: 128.419998 | F139: 128.639999 | G139: 0.10875625 | H139: 0.10580359 | J139: pátek
B140: 2017-03-20 | C140: 128.990005 | D140: 129.479996 | E140: 128.470001 | F140: 128.779999 | G140: 0.10640683 | H140: 0.10321605 | J140: pondělí
B141: 2017-03-24 | C141: 129.380005 | D141: 129.679993 | E141: 129.160004 | F141: 129.339996 | G141: 0.1152013 | H141: 0.11474094 | J141: pátek
B142: 2017-03-27 | C142: 129.080002 | D142: 129.820007 | E142: 129.020004 | F142: 129.490005 | G142: 0.12609122 | H142: 0.1323934 | J142: pondělí
B143: 2017-03-31 | C143: 129.389999 | D143: 130.190002 | E143: 129.300003 | F143: 129.610001 | G143: 0.13761611 | H143: 0.13794947 | J143: pátek
B144: 2017-04-03 | C144: 129.5 | D144: 129.710007 | E144: 128.860001 | F144: 129.610001 | G144: 0.1361874 | H144: 0.13802885 | J144: pondělí
B145: 2017-04-07 | C145: 130.020004 | D145: 130.399994 | E145: 129.619995 | F145: 129.960007 | G145: 0.14037827 | H145: 0.14350555 | J145: pátek
B146: 2017-04-17 | C146: 131.25 | D146: 131.869995 | E146: 130.910004 | F146: 131.350006 | G146: 0.14620422 | H146: 0.14744243 | J146: pondělí
B147: 2017-04-21 | C147: 133.550003 | D147: 133.880005 | E147: 133.149994 | F147: 133.410004 | G147: 0.13869558 | H147: 0.13929881 | J147: pátek
B148: 2017-04-24 | C148: 134.240005 | D148: 134.759995 | E148: 133.259995 | F148: 134.229996 | G148: 0.13748911 | H148: 0.14475964 | J148: pondělí
B149: 2017-04-28 | C149: 140.389999 | D149: 140.759995 | E149: 139.779999 | F149: 139.929993 | G149: 0.12121774 | H149: 0.11616965 | J149: pátek
B150: 2017-05-01 | C150: 139.860001 | D150: 141.449997 | E150: 139.839996 | F150: 141.149994 | G150: 0.1143917 | H150: 0.11286775 | J150: pondělí
B151: 2017-05-05 | C151: 143.419998 | D151: 143.979996 | E151: 142.580002 | F151: 143.960007 | G151: 0.10951823 | H151: 0.10826414 | J151: pátek
B152: 2017-05-08 | C152: 143.929993 | D152: 144.5 | E152: 143.660004 | F152: 144.240005 | G152: 0.10996272 | H152: 0.11401072 | J152: pondělí
B153: 2017-05-12 | C153: 144.5 | D153: 145.5 | E153: 144.460007 | F153: 145.360001 | G153: 0.11343923 | H153: 0.11513781 | J153: pátek
B154: 2017-05-15 | C154: 145.429993 | D154: 146.399994 | E154: 145.429993 | F154: 146.279999 | G154: 0.11599503 | H154: 0.11343923 | J154: pondělí
B155: 2017-05-19 | C155: 147.25 | D155: 148.830002 | E155: 146.839996 | F155: 148.149994 | G155: 0.12750405 | H155: 0.12356717 | J155: pátek
B156: 2017-05-22 | C156: 148.300003 | D156: 148.880005 | E156: 147.929993 | F156: 148.190002 | G156: 0.12496413 | H156: 0.12331318 | J156: pondělí
B157: 2017-05-26 | C157: 149.869995 | D157: 150.240005 | E157: 149.25 | F157: 149.860001 | G157: 0.13202828 | H157: 0.12736118 | J157: pátek
B158: 2017-06-05 | C158: 153.630005 | D158: 153.660004 | E158: 152.759995 | F158: 152.789993 | G158: 0.12391641 | H158: 0.12453551 | J158: pondělí
B159: 2017-06-09 | C159: 151.880005 | D159: 152 | E159: 150.899994 | F159: 151.479996 | G159: 0.12199559 | H159: 0.12378941 | J159: pátek
B160: 2017-06-12 | C160: 151.479996 | D160: 151.479996 | E160: 148.039993 | F160: 148.470001 | G160: 0.12299569 | H160: 0.15868158 | J160: pondělí
B161: 2017-06-16 | C161: 150.979996 | D161: 152.889999 | E161: 150.919998 | F161: 151.990005 | G161: 0.12810728 | H161: 0.12263057 | J161: pátek
B162: 2017-06-19 | C162: 152.389999 | D162: 153.179993 | E162: 151.839996 | F162: 153.139999 | G162: 0.12258295 | H162: 0.11540767 | J162: pondělí
B163: 2017-06-23 | C163: 155 | D163: 155.449997 | E163: 154.429993 | F163: 154.639999 | G163: 0.13293313 | H163: 0.13420309 | J163: pátek
B164: 2017-06-26 | C164: 155.179993 | D164: 155.460007 | E164: 153.520004 | F164: 153.960007 | G164: 0.14729956 | H164: 0.15215716 | J164: pondělí
B165: 2017-06-30 | C165: 153.300003 | D165: 153.770004 | E165: 152.720001 | F165: 153.160004 | G165: 0.16922225 | H165: 0.16260258 | J165: pátek
B166: 2017-07-03 | C166: 153.440002 | D166: 153.869995 | E166: 152.479996 | F166: 152.5 | G166: 0.16080876 | H166: 0.16730144 | J166: pondělí
B167: 2017-07-07 | C167: 153.369995 | D167: 156.559998 | E167: 153.149994 | F167: 156.270004 | G167: 0.16612672 | H167: 0.16347568 | J167: pátek
B168: 2017-07-10 | C168: 156.279999 | D168: 156.529999 | E168: 155.160004 | F168: 155.520004 | G168: 0.16098338 | H168: 0.16404716 | J168: pondělí
B169: 2017-07-14 | C169: 154.990005 | D169: 155.5 | E169: 154.729996 | F169: 155.279999 | G169: 0.17114307 | H169: 0.16728556 | J169: pátek
B170: 2017-07-17 | C170: 155.429993 | D170: 155.440002 | E170: 154.699997 | F170: 155.259995 | G170: 0.16433291 | H170: 0.16726969 | J170: pondělí
B171: 2017-07-21 | C171: 154.059998 | D171: 154.699997 | E171: 153.289993 | F171: 153.919998 | G171: 0.17219079 | H171: 0.17631816 | J171: pátek
B172: 2017-07-24 | C172: 154 | D172: 154.220001 | E172: 151.770004 | F172: 151.850006 | G172: 0.17409573 | H172: 0.18492214 | J172: pondělí
B173: 2017-07-28 | C173: 156.360001 | D173: 156.660004 | E173: 155.070007 | F173: 155.850006 | G173: 0.13431421 | H173: 0.13102819 | J173: pátek
B174: 2017-07-31 | C174: 155.919998 | D174: 156.419998 | E174: 154.850006 | F174: 155.139999 | G174: 0.12842477 | H174: 0.12944074 | J174: pondělí
B175: 2017-08-04 | C175: 154.610001 | D175: 154.820007 | E175: 153.229996 | F175: 153.820007 | G175: 0.13279026 | H175: 0.1315203 | J175: pátek
B176: 2017-08-07 | C176: 154.139999 | D176: 155.389999 | E176: 154 | F176: 154.970001 | G176: 0.1323299 | H176: 0.1347587 | J176: pondělí
B177: 2017-08-11 | C177: 156.880005 | D177: 158.399994 | E177: 156.630005 | F177: 157.300003 | G177: 0.14223559 | H177: 0.14148949 | J177: pátek
B178: 2017-08-14 | C178: 157.449997 | D178: 157.899994 | E178: 156.460007 | F178: 157.259995 | G178: 0.14234671 | H178: 0.13112343 | J178: pondělí
B179: 2017-08-18 | C179: 157.990005 | D179: 158.279999 | E179: 157.020004 | F179: 157.759995 | G179: 0.13647314 | H179: 0.12590072 | J179: pátek
B180: 2017-08-21 | C180: 158.169998 | D180: 158.639999 | E180: 157.539993 | F180: 158.360001 | G180: 0.1282819 | H180: 0.12466251 | J180: pondělí
B181: 2017-08-25 | C181: 158.889999 | D181: 159.339996 | E181: 158.529999 | F181: 158.820007 | G181: 0.12115424 | H181: 0.11493144 | J181: pátek
B182: 2017-08-28 | C182: 159.039993 | D182: 159.960007 | E182: 158.660004 | F182: 159.669998 | G182: 0.11566166 | H182: 0.12056689 | J182: pondělí
B183: 2017-09-01 | C183: 159.869995 | D183: 160.199997 | E183: 159.5 | F183: 159.809998 | G183: 0.11182003 | H183: 0.10928011 | J183: pátek
B184: 2017-09-11 | C184: 160 | D184: 161.720001 | E184: 159.919998 | F184: 161.529999 | G184: 0.11434408 | H184: 0.10853401 | J184: pondělí
B185: 2017-09-15 | C185: 157.789993 | D185: 158 | E185: 156.880005 | F185: 156.919998 | G185: 0.12998047 | H185: 0.11129617 | J185: pátek
B186: 2017-09-18 | C186: 157.720001 | D186: 157.789993 | E186: 156.350006 | F186: 156.679993 | G186: 0.11340748 | H186: 0.11253439 | J186: pondělí
B187: 2017-09-22 | C187: 158.880005 | D187: 159.740005 | E187: 158.559998 | F187: 158.910004 | G187: 0.11970966 | H187: 0.12517049 | J187: pátek
B188: 2017-09-25 | C188: 158.470001 | D188: 158.690002 | E188: 156.100006 | F188: 156.259995 | G188: 0.13882257 | H188: 0.15504632 | J188: pondělí
B189: 2017-09-29 | C189: 157.509995 | D189: 158.039993 | E189: 156.119995 | F189: 156.679993 | G189: 0.17092083 | H189: 0.16453927 | J189: pátek
B190: 2017-10-02 | C190: 156 | D190: 157.179993 | E190: 155.800003 | F190: 156.960007 | G190: 0.16017378 | H190: 0.16577749 | J190: pondělí
B191: 2017-10-06 | C191: 158.580002 | D191: 160.130005 | E191: 158.580002 | F191: 159.600006 | G191: 0.16466627 | H191: 0.16249146 | J191: pátek
B192: 2017-10-09 | C192: 159.610001 | D192: 160.490005 | E192: 159.5 | F192: 160.119995 | G192: 0.16036428 | H192: 0.15952293 | J192: pondělí
B193: 2017-10-13 | C193: 164.449997 | D193: 165.509995 | E193: 164.080002 | F193: 165.369995 | G193: 0.16145962 | H193: 0.16206285 | J193: pátek
B194: 2017-10-16 | C194: 165.440002 | D194: 165.740005 | E194: 164.440002 | F194: 165.009995 | G194: 0.16338043 | H194: 0.16204698 | J194: pondělí
B195: 2017-10-20 | C195: 167.229996 | D195: 167.899994 | E195: 165.5 | F195: 166.300003 | G195: 0.15869746 | H195: 0.15839584 | J195: pátek
B196: 2017-10-23 | C196: 166.100006 | D196: 166.100006 | E196: 163.089996 | F196: 163.339996 | G196: 0.157237 | H196: 0.17103195 | J196: pondělí
B197: 2017-10-27 | C197: 164.089996 | D197: 165.850006 | E197: 163.770004 | F197: 165.389999 | G197: 0.12810728 | H197: 0.13029796 | J197: pátek
B198: 2017-10-30 | C198: 165 | D198: 166.559998 | E198: 164.669998 | F198: 166.229996 | G198: 0.13142505 | H198: 0.13529843 | J198: pondělí
B199: 2017-11-03 | C199: 168 | D199: 169.449997 | E199: 167.600006 | F199: 168.649994 | G199: 0.13431421 | H199: 0.13737799 | J199: pátek
B200: 2017-11-06 | C200: 168.899994 | D200: 170.419998 | E200: 168.600006 | F200: 170.070007 | G200: 0.13783835 | H200: 0.13496507 | J200: pondělí
B201: 2017-11-10 | C201: 166.399994 | D201: 166.800003 | E201: 163.520004 | F201: 165.589996 | G201: 0.1387432 | H201: 0.13990204 | J201: pátek
... 257 more rows

Sheet Backtest
B1: Vstup | C1: Výstup | D1: Vstupní cena | E1: Výstupní cena | F1: Strategie vstup | G1: Strategie výstup | H1: Strategie P/L | I1: MCD CBack/0-1020-1/all
B2: Celkem Backtest | I2: -1076.43707
B3: 2015-08-31 | C3: 2015-09-04 | D3: 95.769997 | E3: 94.849998 | F3: 41.83386439 | G3: 0 | H3: 41.83386439 | I3: 41.83386439
B4: 2015-09-14 | C4: 2015-09-18 | D4: 97.360001 | E4: 97.050003 | F4: 52.85453662 | G4: -5.027110085 | H4: 47.82742653 | I4: 89.66129092
B5: 2015-09-21 | C5: 2015-09-25 | D5: 97.480003 | E5: 97.589996 | F5: 55.41501077 | G5: -58.99969228 | H5: -3.584681509 | I5: 86.07660941
B6: 2015-09-28 | C6: 2015-10-02 | D6: 97 | E6: 99.790001 | F6: 46.61025533 | G6: -120.9998039 | H6: -74.38954859 | I6: 11.68706082
B7: 2015-10-05 | C7: 2015-10-09 | D7: 100.269997 | E7: 102.760002 | F7: 50.82704881 | G7: -123.9997011 | H7: -73.17265225 | I7: -61.48559144
B8: 2015-10-12 | C8: 2015-10-16 | D8: 102.68 | E8: 104.82 | F8: 41.08516203 | G8: -182.0000977 | H8: -140.9149357 | I8: -202.4005271
B9: 2015-10-19 | C9: 2015-10-23 | D9: 104.239998 | E9: 112.589996 | F9: 45.57882054 | G9: 0 | H9: 45.57882054 | I9: -156.8217066
B10: 2015-10-26 | C10: 2015-10-30 | D10: 112.230003 | E10: 112.25 | F10: 47.23979229 | G10: -25.00010654 | H10: 22.23968575 | I10: -134.5820208
B11: 2015-11-02 | C11: 2015-11-06 | D11: 112.459999 | E11: 113.309998 | F11: 52.11569697 | G11: -130.9999065 | H11: -78.88420957 | I11: -213.4662304
B12: 2015-11-09 | C12: 2015-11-13 | D12: 113.449997 | E12: 109.970001 | F12: 50.26138204 | G12: 0 | H12: 50.26138204 | I12: -163.2048484
B13: 2015-11-16 | C13: 2015-11-20 | D13: 109.849998 | E13: 113.910004 | F13: 42.92113104 | G13: -8.99990096 | H13: 33.92123008 | I13: -129.2836183
B14: 2015-11-23 | C14: 2015-11-27 | D14: 114.010002 | E14: 114.230003 | F14: 47.11975307 | G14: -23.00040845 | H14: 24.11934462 | I14: -105.1642737
B15: 2015-11-30 | C15: 2015-12-04 | D15: 114.379997 | E15: 116.199997 | F15: 55.35089422 | G15: -180.0001877 | H15: -124.6492935 | I15: -229.8135672
B16: 2015-12-07 | C16: 2015-12-11 | D16: 115.809998 | E16: 116.080002 | F16: 43.51659445 | G16: -8.006575163 | H16: 35.51001929 | I16: -194.3035479
B17: 2015-12-14 | C17: 2015-12-18 | D17: 116.169998 | E17: 116.660004 | F17: 46.66910854 | G17: -66.00051035 | H17: -19.33140181 | I17: -213.6349497
B18: 2016-01-04 | C18: 2016-01-08 | D18: 117.25 | E18: 115.480003 | F18: 41.49129067 | G18: -3.831930537e-277 | H18: 41.49129067 | I18: -172.143659
B19: 2016-01-11 | C19: 2016-01-15 | D19: 115.650002 | E19: 115.18 | F19: 36.28447685 | G19: -2.403728623e-73 | H19: 36.28447685 | I19: -135.8591822
B20: 2016-01-25 | C20: 2016-01-29 | D20: 121.849998 | E20: 123.779999 | F20: 37.51504347 | G20: -178.0000161 | H20: -140.4849726 | I20: -276.3441548
B21: 2016-02-01 | C21: 2016-02-05 | D21: 123.080002 | E21: 115.400002 | F21: 47.15538559 | G21: 0 | H21: 47.15538559 | I21: -229.1887692
B22: 2016-02-08 | C22: 2016-02-12 | D22: 114.050003 | E22: 117.93 | F22: 42.14476194 | G22: -7.03631932 | H22: 35.10844262 | I22: -194.0803266
B23: 2016-02-22 | C23: 2016-02-26 | D23: 116.529999 | E23: 117.059998 | F23: 38.4696146 | G23: -6.019267131 | H23: 32.45034747 | I23: -161.6299791
B24: 2016-02-29 | C24: 2016-03-04 | D24: 116.800003 | E24: 117.18 | F24: 43.16955475 | G24: -18.0001113 | H24: 25.16944345 | I24: -136.4605356
B25: 2016-03-07 | C25: 2016-03-11 | D25: 117.029999 | E25: 121.550003 | F25: 47.74207017 | G25: 0 | H25: 47.74207017 | I25: -88.71846547
B26: 2016-03-14 | C26: 2016-03-18 | D26: 121.809998 | E26: 124.080002 | F26: 43.76485549 | G26: -191.9988326 | H26: -148.2339771 | I26: -236.9524426
B27: 2016-03-28 | C27: 2016-04-01 | D27: 124 | E27: 127.019997 | F27: 45.11159824 | G27: -98.00017823 | H27: -52.88857999 | I27: -289.8410226
B28: 2016-04-04 | C28: 2016-04-08 | D28: 127.050003 | E28: 127.959999 | F28: 46.4536874 | G28: -96.00002081 | H28: -49.54633341 | I28: -339.387356
B29: 2016-04-11 | C29: 2016-04-15 | D29: 128.350006 | E29: 127.779999 | F29: 47.86396669 | G29: -5.142945793e-11 | H29: 47.86396669 | I29: -291.5233893
B30: 2016-04-18 | C30: 2016-04-22 | D30: 127.779999 | E30: 125.5 | F30: 41.20864961 | G30: 0 | H30: 41.20864961 | I30: -250.3147397
B31: 2016-04-25 | C31: 2016-04-29 | D31: 125.07 | E31: 126.489998 | F31: 49.39688168 | G31: -148.9999189 | H31: -99.60303723 | I31: -349.9177769
B32: 2016-05-02 | C32: 2016-05-06 | D32: 126.650002 | E32: 130.580002 | F32: 40.65415652 | G32: -41.99967538 | H32: -1.345518863 | I32: -351.2632958
B33: 2016-05-09 | C33: 2016-05-13 | D33: 130.649994 | E33: 128.830002 | F33: 40.76546869 | G33: 0 | H33: 40.76546869 | I33: -310.4978271
B34: 2016-05-16 | C34: 2016-05-20 | D34: 128.509995 | E34: 122.559998 | F34: 38.32454447 | G34: 0 | H34: 38.32454447 | I34: -272.1732826
B35: 2016-05-23 | C35: 2016-05-27 | D35: 122.760002 | E35: 123.25 | F35: 42.45904222 | G35: -25.00011701 | H35: 17.45892521 | I35: -254.7143574
B36: 2016-06-06 | C36: 2016-06-10 | D36: 121.790001 | E36: 122.360001 | F36: 43.19720529 | G36: -36.00021606 | H36: 7.19698923 | I36: -247.5173682
B37: 2016-06-13 | C37: 2016-06-17 | D37: 121.949997 | E37: 122.269997 | F37: 46.88620875 | G37: -26.99981606 | H37: 19.88639269 | I37: -227.6309755
B38: 2016-06-20 | C38: 2016-06-24 | D38: 123.32 | E38: 119.440002 | F38: 54.14720386 | G38: 0 | H38: 54.14720386 | I38: -173.4837716
B39: 2016-06-27 | C39: 2016-07-01 | D39: 118.160004 | E39: 120.400002 | F39: 47.38818939 | G39: -159.9996839 | H39: -112.6114945 | I39: -286.0952662
B40: 2016-07-11 | C40: 2016-07-15 | D40: 121.690002 | E40: 123.610001 | F40: 41.42930298 | G40: -161.0002161 | H40: -119.5709131 | I40: -405.6661793
B41: 2016-07-18 | C41: 2016-07-22 | D41: 124 | E41: 128.259995 | F41: 47.20265517 | G41: 0 | H41: 47.20265517 | I41: -358.4635241
B42: 2016-07-25 | C42: 2016-07-29 | D42: 127.949997 | E42: 117.650002 | F42: 46.3049326 | G42: 0 | H42: 46.3049326 | I42: -312.1585915
B43: 2016-08-01 | C43: 2016-08-05 | D43: 117.879997 | E43: 119.209999 | F43: 45.28172475 | G43: -121.0000123 | H43: -75.7182875 | I43: -387.876879
B44: 2016-08-08 | C44: 2016-08-12 | D44: 119.169998 | E44: 119.519997 | F44: 52.68161258 | G44: -51.9998132 | H44: 0.6817993745 | I44: -387.1950796
B45: 2016-08-15 | C45: 2016-08-19 | D45: 119.019997 | E45: 115.010002 | F45: 48.23113158 | G45: 0 | H45: 48.23113158 | I45: -338.963948
B46: 2016-08-22 | C46: 2016-08-26 | D46: 115 | E46: 114.440002 | F46: 47.82122696 | G46: -6.017580726e-164 | H46: 47.82122696 | I46: -291.1427211
B47: 2016-08-29 | C47: 2016-09-02 | D47: 114.599998 | E47: 115.830002 | F47: 36.79876061 | G47: -83.0003094 | H47: -46.20154879 | I47: -337.3442699
B48: 2016-09-12 | C48: 2016-09-16 | D48: 114.470001 | E48: 115.279999 | F48: 59.06657448 | G48: -128.0000084 | H48: -68.93343397 | I48: -406.2777038
B49: 2016-09-19 | C49: 2016-09-23 | D49: 115.830002 | E49: 117.169998 | F49: 44.19201046 | G49: -116.9999104 | H49: -72.80789989 | I49: -479.0856037
B50: 2016-09-26 | C50: 2016-09-30 | D50: 116.800003 | E50: 115.360001 | F50: 43.57841698 | G50: 0 | H50: 43.57841698 | I50: -435.5071868
B51: 2016-10-03 | C51: 2016-10-07 | D51: 115.010002 | E51: 113.449997 | F51: 47.5704784 | G51: 0 | H51: 47.5704784 | I51: -387.9367084
B52: 2016-10-10 | C52: 2016-10-14 | D52: 114.209999 | E52: 114.089996 | F52: 50.3561136 | G52: -9.000286955 | H52: 41.35582665 | I52: -346.5808817
B53: 2016-10-17 | C53: 2016-10-21 | D53: 113.910004 | E53: 113.93 | F53: 45.17874362 | G53: -0.0006815860266 | H53: 45.17806203 | I53: -301.4028197
B54: 2016-10-24 | C54: 2016-10-28 | D54: 114.25 | E54: 112.099998 | F54: 54.25482177 | G54: 0 | H54: 54.25482177 | I54: -247.1479979
B55: 2016-10-31 | C55: 2016-11-04 | D55: 112.459999 | E55: 111.040001 | F55: 59.76527702 | G55: 0 | H55: 59.76527702 | I55: -187.3827209
B56: 2016-11-07 | C56: 2016-11-11 | D56: 112 | E56: 114.220001 | F56: 47.77741628 | G56: -177.9997896 | H56: -130.2223734 | I56: -317.6050943
B57: 2016-11-14 | C57: 2016-11-18 | D57: 114.989998 | E57: 120 | F57: 47.79733232 | G57: 0 | H57: 47.79733232 | I57: -269.807762
B58: 2016-11-21 | C58: 2016-11-25 | D58: 119.800003 | E58: 120.660004 | F58: 43.10980349 | G58: -66.00051416 | H58: -22.89071067 | I58: -292.6984726
B59: 2016-11-28 | C59: 2016-12-02 | D59: 120.379997 | E59: 118.239998 | F59: 57.48844089 | G59: 0 | H59: 57.48844089 | I59: -235.2100317
B60: 2016-12-05 | C60: 2016-12-09 | D60: 119.449997 | E60: 121.260002 | F60: 57.70615251 | G60: -173.999683 | H60: -116.2935305 | I60: -351.5035622
B61: 2016-12-12 | C61: 2016-12-16 | D61: 121.57 | E61: 123.239998 | F61: 39.04705443 | G61: -123.9999161 | H61: -84.95286163 | I61: -436.4564238
B62: 2016-12-19 | C62: 2016-12-23 | D62: 123.230003 | E62: 123.139999 | F62: 52.81249425 | G62: -14.00001701 | H62: 38.81247724 | I62: -397.6439466
B63: 2017-01-09 | C63: 2017-01-13 | D63: 120.760002 | E63: 121.5 | F63: 41.83274502 | G63: -50.00011511 | H63: -8.167370089 | I63: -405.8113167
B64: 2017-01-23 | C64: 2017-01-27 | D64: 121.690002 | E64: 122.860001 | F64: 41.45469758 | G64: -86.00021606 | H64: -44.54551848 | I64: -450.3568352
B65: 2017-01-30 | C65: 2017-02-03 | D65: 122.809998 | E65: 124.239998 | F65: 43.06584201 | G65: -123.999917 | H65: -80.934075 | I65: -531.2909102
B66: 2017-02-06 | C66: 2017-02-10 | D66: 124.089996 | E66: 125.82 | F66: 50.33574247 | G66: -182.000118 | H66: -131.6643755 | I66: -662.9552856
B67: 2017-02-13 | C67: 2017-02-17 | D67: 126.019997 | E67: 127.800003 | F67: 48.37368989 | G67: -180.0004199 | H67: -131.62673 | I67: -794.5820156
B68: 2017-02-27 | C68: 2017-03-03 | D68: 127.68 | E68: 127.900002 | F68: 39.67779201 | G68: -4.999089073e-07 | H68: 39.67779151 | I68: -754.9042241
B69: 2017-03-06 | C69: 2017-03-10 | D69: 127.900002 | E69: 127.980003 | F69: 45.30275864 | G69: -0.1591323484 | H69: 45.1436263 | I69: -709.7605978
B70: 2017-03-13 | C70: 2017-03-17 | D70: 128.009995 | E70: 128.639999 | F70: 47.65842736 | G70: -64.00002177 | H70: -16.34159441 | I70: -726.1021922
B71: 2017-03-20 | C71: 2017-03-24 | D71: 128.990005 | E71: 129.339996 | F71: 46.74247254 | G71: -33.99972272 | H71: 12.74274983 | I71: -713.3594424
B72: 2017-03-27 | C72: 2017-03-31 | D72: 129.080002 | E72: 129.610001 | F72: 50.17153001 | G72: -61.00022272 | H72: -10.82869271 | I72: -724.1881351
B73: 2017-04-03 | C73: 2017-04-07 | D73: 129.5 | E73: 129.960007 | F73: 37.06626572 | G73: -0.0665371464 | H73: 36.99972857 | I73: -687.1884065
B74: 2017-04-17 | C74: 2017-04-21 | D74: 131.25 | E74: 133.410004 | F74: 52.1192082 | G74: -158.9994716 | H74: -106.8802634 | I74: -794.0686699
B75: 2017-04-24 | C75: 2017-04-28 | D75: 134.240005 | E75: 139.929993 | F75: 52.61824805 | G75: -2.842170943e-12 | H75: 52.61824805 | I75: -741.4504219
B76: 2017-05-01 | C76: 2017-05-05 | D76: 139.860001 | E76: 143.960007 | F76: 44.55239593 | G76: -4.025517362 | H76: 40.52687857 | I76: -700.9235433
B77: 2017-05-08 | C77: 2017-05-12 | D77: 143.929993 | E77: 145.360001 | F77: 46.32199326 | G77: -136.000237 | H77: -89.67824373 | I77: -790.601787
B78: 2017-05-15 | C78: 2017-05-19 | D78: 145.429993 | E78: 148.149994 | F78: 58.33510782 | G78: -85.00045826 | H78: -26.66535044 | I78: -817.2671375
B79: 2017-05-22 | C79: 2017-05-26 | D79: 148.300003 | E79: 149.860001 | F79: 53.79903178 | G79: -186.0002407 | H79: -132.201209 | I79: -949.4683464
B80: 2017-06-05 | C80: 2017-06-09 | D80: 153.630005 | E80: 151.479996 | F80: 40.43702965 | G80: 0 | H80: 40.43702965 | I80: -909.0313168
B81: 2017-06-12 | C81: 2017-06-16 | D81: 151.479996 | E81: 151.990005 | F81: 57.10516989 | G81: -99.00064365 | H81: -41.89547376 | I81: -950.9267905
B82: 2017-06-19 | C82: 2017-06-23 | D82: 152.389999 | E82: 154.639999 | F82: 55.37452023 | G82: -135.9999516 | H82: -80.62543137 | I82: -1031.552222
B83: 2017-06-26 | C83: 2017-06-30 | D83: 155.179993 | E83: 153.160004 | F83: 47.54505238 | G83: 0 | H83: 47.54505238 | I83: -984.0071695
B84: 2017-07-03 | C84: 2017-07-07 | D84: 153.440002 | E84: 156.270004 | F84: 48.42696349 | G84: -72.99945065 | H84: -24.57248715 | I84: -1008.579657
B85: 2017-07-10 | C85: 2017-07-14 | D85: 156.279999 | E85: 155.279999 | F85: 46.27781033 | G85: -1.855555043e-90 | H85: 46.27781033 | I85: -962.3018464
B86: 2017-07-17 | C86: 2017-07-21 | D86: 155.429993 | E86: 153.919998 | F86: 47.26992812 | G86: -5.875065742e-183 | H86: 47.26992812 | I86: -915.0319182
B87: 2017-07-24 | C87: 2017-07-28 | D87: 154 | E87: 155.850006 | F87: 41.97084459 | G87: -185.0007464 | H87: -143.0299019 | I87: -1058.06182
B88: 2017-07-31 | C88: 2017-08-04 | D88: 155.919998 | E88: 153.820007 | F88: 45.71108204 | G88: 0 | H88: 45.71108204 | I88: -1012.350738
B89: 2017-08-07 | C89: 2017-08-11 | D89: 154.139999 | E89: 157.300003 | F89: 49.23475333 | G89: -69.9995497 | H89: -20.76479636 | I89: -1033.115534
B90: 2017-08-14 | C90: 2017-08-18 | D90: 157.449997 | E90: 157.759995 | F90: 51.47992183 | G90: -75.99964935 | H90: -24.51972752 | I90: -1057.635262
B91: 2017-08-21 | C91: 2017-08-25 | D91: 158.169998 | E91: 158.820007 | F91: 49.84229384 | G91: -82.0008503 | H91: -32.15855647 | I91: -1089.793818
B92: 2017-08-28 | C92: 2017-09-01 | D92: 159.039993 | E92: 159.809998 | F92: 48.73357221 | G92: -80.99995126 | H92: -32.26637905 | I92: -1122.060197
B93: 2017-09-11 | C93: 2017-09-15 | D93: 160 | E93: 156.919998 | F93: 47.95184918 | G93: 0 | H93: 47.95184918 | I93: -1074.108348
B94: 2017-09-18 | C94: 2017-09-22 | D94: 157.720001 | E94: 158.910004 | F94: 42.01812302 | G94: -91.0005503 | H94: -48.98242728 | I94: -1123.090776
B95: 2017-09-25 | C95: 2017-09-29 | D95: 158.470001 | E95: 156.679993 | F95: 52.29247345 | G95: -1.975857841e-300 | H95: 52.29247345 | I95: -1070.798302
B96: 2017-10-02 | C96: 2017-10-06 | D96: 156 | E96: 159.600006 | F96: 43.48887461 | G96: -39.99924779 | H96: 3.489626818 | I96: -1067.308675
B97: 2017-10-09 | C97: 2017-10-13 | D97: 159.610001 | E97: 165.369995 | F97: 38.77685659 | G97: -2.842170943e-12 | H97: 38.77685659 | I97: -1028.531819
B98: 2017-10-16 | C98: 2017-10-20 | D98: 165.440002 | E98: 166.300003 | F98: 45.62256443 | G98: -130.000457 | H98: -84.37789253 | I98: -1112.909711
B99: 2017-10-23 | C99: 2017-10-27 | D99: 166.100006 | E99: 165.389999 | F99: 43.58109674 | G99: -2.172456514e-94 | H99: 43.58109674 | I99: -1069.328614
B100: 2017-10-30 | C100: 2017-11-03 | D100: 165 | E100: 168.649994 | F100: 46.08668136 | G100: -35.00043923 | H100: 11.08624213 | I100: -1058.242372
B101: 2017-11-06 | C101: 2017-11-10 | D101: 168.899994 | E101: 165.589996 | F101: 43.61267752 | G101: 0 | H101: 43.61267752 | I101: -1014.629695
B102: 2017-11-13 | C102: 2017-11-17 | D102: 165.470001 | E102: 166.720001 | F102: 50.58271094 | G102: -172.000257 | H102: -121.417546 | I102: -1136.047241
B103: 2017-11-20 | C103: 2017-11-24 | D103: 167.330002 | E103: 169.110001 | F103: 47.9151179 | G103: -188.9996441 | H103: -141.0845262 | I103: -1277.131767
B104: 2017-11-27 | C104: 2017-12-01 | D104: 168.899994 | E104: 172.869995 | F104: 44.99610006 | G104: -13.00037636 | H104: 31.9957237 | I104: -1245.136043
B105: 2017-12-04 | C105: 2017-12-08 | D105: 173.270004 | E105: 173.149994 | F105: 47.0238779 | G105: -14.99956492 | H105: 32.02431298 | I105: -1213.11173
B106: 2017-12-11 | C106: 2017-12-15 | D106: 172.940002 | E106: 174.059998 | F106: 44.64092562 | G106: -105.9999646 | H106: -61.35903896 | I106: -1274.470769
B107: 2017-12-18 | C107: 2017-12-22 | D107: 174.869995 | E107: 171.419998 | F107: 44.38583313 | G107: 0 | H107: 44.38583313 | I107: -1230.084936
B108: 2018-01-08 | C108: 2018-01-12 | D108: 173.740005 | E108: 173.570007 | F108: 39.61725828 | G108: -2.355717647e-30 | H108: 39.61725828 | I108: -1190.467678
B109: 2018-01-22 | C109: 2018-01-26 | D109: 175.970001 | E109: 178.360001 | F109: 40.08470464 | G109: -163.9997288 | H109: -123.9150241 | I109: -1314.382702
B110: 2018-01-29 | C110: 2018-02-02 | D110: 178.300003 | E110: 169.380005 | F110: 38.43894483 | G110: 0 | H110: 38.43894483 | I110: -1275.943757
B111: 2018-02-05 | C111: 2018-02-09 | D111: 168.610001 | E111: 160.800003 | F111: 36.34397346 | G111: 0 | H111: 36.34397346 | I111: -1239.599784
B112: 2018-02-12 | C112: 2018-02-16 | D112: 162.369995 | E112: 157.789993 | F112: 31.48166331 | G112: 0 | H112: 31.48166331 | I112: -1208.11812
B113: 2018-02-26 | C113: 2018-03-02 | D113: 164 | E113: 148.270004 | F113: 41.90482123 | G113: 0 | H113: 41.90482123 | I113: -1166.213299
B114: 2018-03-05 | C114: 2018-03-09 | D114: 148.279999 | E114: 157.240005 | F114: 37.976553 | G114: 2.842170943e-12 | H114: 37.976553 | I114: -1128.236746
B115: 2018-03-12 | C115: 2018-03-16 | D115: 157.740005 | E115: 162.360001 | F115: 39.88742543 | G115: 2.842170943e-12 | H115: 39.88742543 | I115: -1088.349321
B116: 2018-03-19 | C116: 2018-03-23 | D116: 162 | E116: 154.979996 | F116: 43.96980803 | G116: 0 | H116: 43.96980803 | I116: -1044.379513
B117: 2018-04-02 | C117: 2018-04-06 | D117: 158.270004 | E117: 161.25 | F117: 37.28110085 | G117: -74.99984589 | H117: -37.71874504 | I117: -1082.098258
B118: 2018-04-09 | C118: 2018-04-13 | D118: 162.220001 | E118: 161.729996 | F118: 35.34606375 | G118: -1.323261367e-09 | H118: 35.34606375 | I118: -1046.752194
B119: 2018-04-16 | C119: 2018-04-20 | D119: 161.300003 | E119: 158.770004 | F119: 39.18886594 | G119: 0 | H119: 39.18886594 | I119: -1007.563328
B120: 2018-04-23 | C120: 2018-04-27 | D120: 158.970001 | E120: 158.300003 | F120: 37.58218358 | G120: -3.663224438e-57 | H120: 37.58218358 | I120: -969.9811445
B121: 2018-04-30 | C121: 2018-05-04 | D121: 164.690002 | E121: 165.029999 | F121: 34.98235417 | G121: -3.380168325 | H121: 31.60218585 | I121: -938.3789587
B122: 2018-05-07 | C122: 2018-05-11 | D122: 166.770004 | E122: 165.389999 | F122: 40.10926466 | G122: 0 | H122: 40.10926466 | I122: -898.269694
B123: 2018-05-14 | C123: 2018-05-18 | D123: 165.649994 | E123: 160.979996 | F123: 40.04317196 | G123: 0 | H123: 40.04317196 | I123: -858.2265221
B124: 2018-05-21 | C124: 2018-05-25 | D124: 161.779999 | E124: 163.210007 | F124: 41.99660915 | G124: -121.0008541 | H124: -79.00424496 | I124: -937.230767
B125: 2018-06-04 | C125: 2018-06-08 | D125: 160.080002 | E125: 168.910004 | F125: 47.43491186 | G125: -2.842170943e-12 | H125: 47.43491186 | I125: -889.7958552
B126: 2018-06-11 | C126: 2018-06-15 | D126: 169.039993 | E126: 166.460007 | F126: 44.58301481 | G126: 0 | H126: 44.58301481 | I126: -845.2128404
B127: 2018-06-18 | C127: 2018-06-22 | D127: 165.529999 | E127: 164.550003 | F127: 38.86524432 | G127: 0 | H127: 38.86524432 | I127: -806.347596
B128: 2018-06-25 | C128: 2018-06-29 | D128: 163 | E128: 156.690002 | F128: 41.36871185 | G128: 0 | H128: 41.36871185 | I128: -764.9788842
B129: 2018-07-02 | C129: 2018-07-06 | D129: 155.990005 | E129: 159.419998 | F129: 36.9754558 | G129: -58.00004779 | H129: -21.024592 | I129: -786.0034762
B130: 2018-07-09 | C130: 2018-07-13 | D130: 160.470001 | E130: 158.509995 | F130: 39.49383941 | G130: -9.982269505e-252 | H130: 39.49383941 | I130: -746.5096368
B131: 2018-07-16 | C131: 2018-07-20 | D131: 158.619995 | E131: 157.970001 | F131: 35.31884717 | G131: -4.341007095e-129 | H131: 35.31884717 | I131: -711.1907896
B132: 2018-07-23 | C132: 2018-07-27 | D132: 157.800003 | E132: 157.479996 | F132: 37.53312995 | G132: -2.021705242e-65 | H132: 37.53312995 | I132: -673.6576597
B133: 2018-07-30 | C133: 2018-08-03 | D133: 157.389999 | E133: 156.210007 | F133: 50.98667971 | G133: -3.869447353e-124 | H133: 50.98667971 | I133: -622.6709799
B134: 2018-08-06 | C134: 2018-08-10 | D134: 156.029999 | E134: 158.679993 | F134: 44.8280107 | G134: -132.0005478 | H134: -87.1725371 | I134: -709.843517
B135: 2018-08-13 | C135: 2018-08-17 | D135: 158.479996 | E135: 161.149994 | F135: 52.13396473 | G135: -85.00044589 | H135: -32.86648116 | I135: -742.7099982
B136: 2018-08-20 | C136: 2018-08-24 | D136: 161.289993 | E136: 159.380005 | F136: 50.45522487 | G136: 0 | H136: 50.45522487 | I136: -692.2547733
B137: 2018-08-27 | C137: 2018-08-31 | D137: 160.229996 | E137: 162.229996 | F137: 49.31252129 | G137: -177.000244 | H137: -127.6877227 | I137: -819.942496
B138: 2018-09-10 | C138: 2018-09-14 | D138: 164.479996 | E138: 160.839996 | F138: 51.4433286 | G138: 0 | H138: 51.4433286 | I138: -768.4991674
B139: 2018-09-17 | C139: 2018-09-21 | D139: 159.550003 | E139: 165.300003 | F139: 39.1999713 | G139: -2.842170943e-12 | H139: 39.1999713 | I139: -729.2991961
B140: 2018-09-24 | C140: 2018-09-28 | D140: 163.899994 | E140: 167.289993 | F140: 41.53769202 | G140: -71.00054018 | H140: -29.46284817 | I140: -758.7620443
B141: 2018-10-01 | C141: 2018-10-05 | D141: 168.369995 | E141: 166.570007 | F141: 42.39257575 | G141: -1.090063279e-214 | H141: 42.39257575 | I141: -716.3694685
B142: 2018-10-08 | C142: 2018-10-12 | D142: 166.25 | E142: 163.820007 | F142: 38.19000784 | G142: 0 | H142: 38.19000784 | I142: -678.1794607
B143: 2018-10-15 | C143: 2018-10-19 | D143: 164.690002 | E143: 167.490005 | F143: 31.44866749 | G143: -150.9993392 | H143: -119.5506717 | I143: -797.7301324
B144: 2018-10-22 | C144: 2018-10-26 | D144: 167.979996 | E144: 173.339996 | F144: 34.8605358 | G144: -2.842170943e-12 | H144: 34.8605358 | I144: -762.8695966
B145: 2018-10-29 | C145: 2018-11-02 | D145: 175 | E145: 176.75 | F145: 35.21665456 | G145: -175.0001665 | H145: -139.7835119 | I145: -902.6531085
B146: 2018-11-05 | C146: 2018-11-09 | D146: 177.410004 | E146: 185.940002 | F146: 39.84415613 | G146: 2.842170943e-12 | H146: 39.84415613 | I146: -862.8089524
B147: 2018-11-12 | C147: 2018-11-16 | D147: 185.949997 | E147: 187.589996 | F147: 38.17563926 | G147: -158.9997769 | H147: -120.8241377 | I147: -983.6330901
B148: 2018-11-19 | C148: 2018-11-23 | D148: 187.740005 | E148: 181.929993 | F148: 36.19440965 | G148: 0 | H148: 36.19440965 | I148: -947.4386804
B149: 2018-11-26 | C149: 2018-11-30 | D149: 182.399994 | E149: 188.509995 | F149: 36.70458715 | G149: -2.842170943e-12 | H149: 36.70458715 | I149: -910.7340933
B150: 2018-12-03 | C150: 2018-12-07 | D150: 188.100006 | E150: 182.960007 | F150: 38.172539 | G150: 0 | H150: 38.172539 | I150: -872.5615543
B151: 2018-12-10 | C151: 2018-12-14 | D151: 182.960007 | E151: 183.289993 | F151: 35.71532333 | G151: -28.99947409 | H151: 6.715849238 | I151: -865.8457051
B152: 2018-12-17 | C152: 2018-12-21 | D152: 182.800003 | E152: 174.149994 | F152: 34.09818663 | G152: 0 | H152: 34.09818663 | I152: -831.7475184
B153: 2018-12-24 | C153: 2018-12-28 | D153: 174.240005 | E153: 175.559998 | F153: 30.35930513 | G153: -155.9999655 | H153: -125.6406604 | I153: -957.3881788
B154: 2018-12-31 | C154: 2019-01-04 | D154: 175.960007 | E154: 178.279999 | F154: 29.8460836 | G154: -171.9999287 | H154: -142.1538451 | I154: -1099.542024
B155: 2019-01-07 | C155: 2019-01-11 | D155: 178.139999 | E155: 182.369995 | F155: 31.35969259 | G155: -2.842170943e-12 | H155: 31.35969259 | I155: -1068.182331
B156: 2019-01-14 | C156: 2019-01-18 | D156: 181.419998 | E156: 182.570007 | F156: 34.66288635 | G156: -157.0008722 | H156: -122.3379858 | I156: -1190.520317
B157: 2019-01-28 | C157: 2019-02-01 | D157: 183.059998 | E157: 176.720001 | F157: 33.05335274 | G157: 0 | H157: 33.05335274 | I157: -1157.466964
B158: 2019-02-04 | C158: 2019-02-08 | D158: 177.289993 | E158: 174.75 | F158: 43.58148587 | G158: 0 | H158: 43.58148587 | I158: -1113.885479
B159: 2019-02-11 | C159: 2019-02-15 | D159: 175.240005 | E159: 179.970001 | F159: 43.02151896 | G159: -2.842170943e-12 | H159: 43.02151896 | I159: -1070.86396
B160: 2019-02-25 | C160: 2019-03-01 | D160: 183.929993 | E160: 185.050003 | F160: 38.37920164 | G160: -105.000475 | H160: -66.6212734 | I160: -1137.485233
B161: 2019-03-04 | C161: 2019-03-08 | D161: 184.550003 | E161: 179.5 | F161: 38.14591649 | G161: 0 | H161: 38.14591649 | I161: -1099.339317
B162: 2019-03-11 | C162: 2019-03-15 | D162: 180 | E162: 185.330002 | F162: 38.46683385 | G162: 2.842170943e-12 | H162: 38.46683385 | I162: -1060.872483
B163: 2019-03-18 | C163: 2019-03-22 | D163: 185.979996 | E163: 186.809998 | F163: 42.76328407 | G163: -80.99997694 | H163: -38.23669287 | I163: -1099.109176
B164: 2019-03-25 | C164: 2019-03-29 | D164: 186.25 | E164: 189.899994 | F164: 40.04286698 | G164: -10.01754926 | H164: 30.02531772 | I164: -1069.083858
B165: 2019-04-01 | C165: 2019-04-05 | D165: 190.5 | E165: 190.710007 | F165: 35.05883708 | G165: -3.096429813e-12 | H165: 35.05883708 | I165: -1034.025021
B166: 2019-04-08 | C166: 2019-04-12 | D166: 190.710007 | E166: 191.600006 | F166: 34.74708011 | G166: -60.0007817 | H166: -25.25370158 | I166: -1059.278722
B167: 2019-04-22 | C167: 2019-04-26 | D167: 194 | E167: 197.419998 | F167: 35.12133443 | G167: -58.00001164 | H167: -22.87867721 | I167: -1082.1574
B168: 2019-04-29 | C168: 2019-05-03 | D168: 197.979996 | E168: 197.520004 | F168: 34.10425651 | G168: -1.136822515e-36 | H168: 34.10425651 | I168: -1048.053143
B169: 2019-05-06 | C169: 2019-05-10 | D169: 196.529999 | E169: 199.990005 | F169: 37.47154453 | G169: -100.9993088 | H169: -63.52776426 | I169: -1111.580907
B170: 2019-05-13 | C170: 2019-05-17 | D170: 198 | E170: 199.220001 | F170: 39.8128299 | G170: -122.0002884 | H170: -82.18745846 | I170: -1193.768366
B171: 2019-05-20 | C171: 2019-05-24 | D171: 199.220001 | E171: 197.770004 | F171: 43.42652158 | G171: -7.823855011e-213 | H171: 43.42652158 | I171: -1150.341844
B172: 2019-06-03 | C172: 2019-06-07 | D172: 198.360001 | E172: 205.479996 | F172: 39.40527768 | G172: -2.842170943e-12 | H172: 39.40527768 | I172: -1110.936566
B173: 2019-06-10 | C173: 2019-06-14 | D173: 206.100006 | E173: 205.289993 | F173: 41.38813317 | G173: -5.974691167e-71 | H173: 41.38813317 | I173: -1069.548433
B174: 2019-06-17 | C174: 2019-06-21 | D174: 205.75 | E174: 204.259995 | F174: 38.05385305 | G174: 0 | H174: 38.05385305 | I174: -1031.49458
B175: 2019-06-24 | C175: 2019-06-28 | D175: 204.75 | E175: 207.660004 | F175: 35.47808139 | G175: -133.9994012 | H175: -98.52131979 | I175: -1130.0159
B176: 2019-07-01 | C176: 2019-07-05 | D176: 208.860001 | E176: 211.240005 | F176: 33.83703135 | G176: -175.9992966 | H176: -142.1622653 | I176: -1272.178165
B177: 2019-07-08 | C177: 2019-07-12 | D177: 211.240005 | E177: 212.990005 | F177: 36.98297496 | G177: -196.2526049 | H177: -159.2696299 | I177: -1431.447795
B178: 2019-07-15 | C178: 2019-07-19 | D178: 213.630005 | E178: 213.869995 | F178: 34.66391278 | G178: -0.007093366002 | H178: 34.65681941 | I178: -1396.790976
B179: 2019-07-22 | C179: 2019-07-26 | D179: 213.789993 | E179: 215.580002 | F179: 33.62197656 | G179: -158.0004036 | H179: -124.378427 | I179: -1521.169403
B180: 2019-07-29 | C180: 2019-08-02 | D180: 216 | E180: 214.479996 | F180: 39.58873289 | G180: -5.859152123e-236 | H180: 39.58873289 | I180: -1481.58067
B181: 2019-08-05 | C181: 2019-08-09 | D181: 213.639999 | E181: 221.149994 | F181: 34.92478004 | G181: 2.842170943e-12 | H181: 34.92478004 | I181: -1446.65589
B182: 2019-08-12 | C182: 2019-08-16 | D182: 220.440002 | E182: 218.470001 | F182: 37.48481328 | G182: -4.781258563e-213 | H182: 37.48481328 | I182: -1409.171077
B183: 2019-08-19 | C183: 2019-08-23 | D183: 219.990005 | E183: 214.660004 | F183: 34.96843058 | G183: 0 | H183: 34.96843058 | I183: -1374.202646
B184: 2019-08-26 | C184: 2019-08-30 | D184: 216.080002 | E184: 217.970001 | F184: 33.30180091 | G184: -195.4780337 | H184: -162.1762328 | I184: -1536.378879
B185: 2019-09-09 | C185: 2019-09-13 | D185: 220.5 | E185: 209.809998 | F185: 34.83408656 | G185: 0 | H185: 34.83408656 | I185: -1501.544792
B186: 2019-09-16 | C186: 2019-09-20 | D186: 209.300003 | E186: 209.389999 | F186: 39.3697931 | G186: -39.00009882 | H186: 0.3696942748 | I186: -1501.175098
B187: 2019-09-23 | C187: 2019-09-27 | D187: 209.059998 | E187: 213.160004 | F187: 35.27986356 | G187: -0.006063673177 | H187: 35.27379989 | I187: -1465.901298
B188: 2019-09-30 | C188: 2019-10-04 | D188: 213.160004 | E188: 211.690002 | F188: 31.91231199 | G188: -3.889448064e-116 | H188: 31.91231199 | I188: -1433.988986
B189: 2019-10-07 | C189: 2019-10-11 | D189: 211.100006 | E189: 209.020004 | F189: 32.24755342 | G189: -9.899328583e-278 | H189: 32.24755342 | I189: -1401.741433
B190: 2019-10-14 | C190: 2019-10-18 | D190: 208 | E190: 208.5 | F190: 32.36221393 | G190: -50.00019787 | H190: -17.63798394 | I190: -1419.379417
B191: 2019-10-21 | C191: 2019-10-25 | D191: 209.699997 | E191: 194.610001 | F191: 33.2644976 | G191: 0 | H191: 33.2644976 | I191: -1386.114919
B192: 2019-10-28 | C192: 2019-11-01 | D192: 194.979996 | E192: 193.940002 | F192: 41.92509607 | G192: -4.676464747e-175 | H192: 41.92509607 | I192: -1344.189823
B193: 2019-11-04 | C193: 2019-11-08 | D193: 190.160004 | E193: 193.610001 | F193: 43.22170349 | G193: -38.99971545 | H193: 4.22198804 | I193: -1339.967835
B194: 2019-11-11 | C194: 2019-11-15 | D194: 193.630005 | E194: 193.970001 | F194: 37.50838567 | G194: -0.4088619343 | H194: 37.09952373 | I194: -1302.868311
B195: 2019-11-18 | C195: 2019-11-22 | D195: 194.199997 | E195: 193.139999 | F195: 44.61405311 | G195: -9.077825785e-130 | H195: 44.61405311 | I195: -1258.254258
B196: 2019-11-25 | C196: 2019-11-29 | D196: 193.940002 | E196: 194.479996 | F196: 42.21559384 | G196: -47.99978455 | H196: -5.784190712 | I196: -1264.038449
B197: 2019-12-02 | C197: 2019-12-06 | D197: 195.380005 | E197: 195.350006 | F197: 45.72416981 | G197: -35.0007855 | H197: 10.72338431 | I197: -1253.315065
B198: 2019-12-09 | C198: 2019-12-13 | D198: 195.660004 | E198: 197.119995 | F198: 39.58222488 | G198: -111.9996865 | H198: -72.41746158 | I198: -1325.732526
B199: 2019-12-16 | C199: 2019-12-20 | D199: 197.589996 | E199: 197.139999 | F199: 38.77865023 | G199: -3.246089729e-157 | H199: 38.77865023 | I199: -1286.953876
B200: 2019-12-23 | C200: 2019-12-27 | D200: 197.539993 | E200: 198.169998 | F200: 38.75465611 | G200: -16.99999217 | H200: 21.75466394 | I200: -1265.199212
... 29 more rows

Sheet Celkem
A1: Název testu | B1: MCD CBTF/100-1-11/all | C1: MCD CBTF/1000-21/all | D1: MCD CRatio/100-1-10/all | E1: MCD CRatio/1000-2-1/all | F1: MCD CRatio/1100-2-1/all | G1: MCD CRatio/1110-2-1/all | H1: MCD CRatio/11100-3/all | I1: MCD CBack/0-10200/all | J1: MCD CBack/0-1020-1/all
A2: Celkem | B2: 4766.990862 | C2: 6298.976627 | D2: 1397.315237 | E2: -440.3746225 | F2: 9674.268148 | G2: 17702.61588 | H2: 20307.17442 | I2: 2293.238555 | J2: -1076.43707
B3: -109.1827003 | C3: -122.5428126 | D3: -104.6309618 | E3: -113.4393357 | F3: -199.7823593 | G3: -248.1879547 | H3: -261.4251508 | I3: 37.2821259 | J3: 41.83386439
B4: -138.5224696 | C4: -168.3208668 | D4: -129.3703546 | E4: -150.0166367 | F4: -337.1601836 | G4: -444.2743595 | H4: -473.0077061 | I4: 80.50917586 | J4: 89.66129092
B5: -119.670928 | C5: -166.7506599 | D5: -105.8394165 | E5: -139.0876369 | F5: -378.0605223 | G5: -546.6948958 | H5: -591.6001965 | I5: 72.24509788 | J5: 86.07660941
B6: 62.06787401 | C6: 80.97709464 | D6: 79.20135132 | E6: 115.2440493 | F6: 67.58401832 | G6: 31.0047269 | H6: -25.65320718 | I6: -5.446416496 | J6: 11.68706082
B7: 232.0054705 | C7: 310.8374833 | D7: 253.8981524 | E7: 354.6228472 | F7: 479.817665 | G7: 561.6884025 | H7: 489.6262851 | I7: -83.37827337 | J7: -61.48559144
B8: 409.4054194 | C8: 477.59786 | D8: 433.8448802 | E8: 526.4767816 | F8: 759.4113565 | G8: 884.5424135 | H8: 803.1310409 | I8: -226.8399879 | J8: -202.4005271
B9: 483.1633138 | C9: 630.9803253 | D9: 59.78214773 | E9: -215.7820069 | F9: 755.0286136 | G9: 1563.83034 | H9: 1658.804065 | I9: 266.5594595 | J9: -156.8217066
B10: 481.2303762 | C10: 610.2777149 | D10: 66.2469994 | E10: -219.6890387 | F10: 662.4559065 | G10: 1403.056381 | H10: 1477.541251 | I10: 280.401356 | J10: -134.5820208
B11: 575.0971685 | C11: 684.5661643 | D11: 167.6136343 | E11: -130.4009043 | F11: 763.4816577 | G11: 1464.847205 | H11: 1518.842011 | I11: 194.0173039 | J11: -213.4662304
B12: 439.6271608 | C12: 528.3188156 | D12: 41.61814697 | E12: -267.6992121 | F12: 501.9666596 | G12: 1127.99513 | H12: 1159.063829 | I12: 234.8041655 | J12: -163.2048484
B13: 536.0525192 | C13: 710.3704814 | D13: 143.2297308 | E13: -75.27509538 | F13: 993.9859434 | G13: 1858.984127 | H13: 2057.502835 | I13: 263.5391701 | J13: -129.2836183
B14: 540.1544294 | C14: 701.7420282 | D14: 150.3352692 | E14: -77.89629216 | F14: 927.5460823 | G14: 1746.589418 | H14: 1933.873161 | I14: 284.6548865 | J14: -105.1642737
B15: 703.3493895 | C15: 870.302137 | D15: 316.4736086 | E15: 96.55057524 | F15: 1222.069464 | G15: 2108.601538 | H15: 2283.525583 | I15: 157.0622137 | J15: -229.8135672
B16: 703.9412018 | C16: 863.54613 | D16: 317.8217189 | E16: 91.30716422 | F16: 1161.09609 | G16: 2019.164804 | H16: 2189.320843 | I16: 191.815935 | J16: -194.3035479
B17: 745.1447259 | C17: 886.7103145 | D17: 366.8053042 | E17: 130.031471 | F17: 1155.840648 | G17: 1948.463144 | H17: 2099.166772 | I17: 164.7044721 | J17: -213.6349497
B18: 620.8856262 | C18: 738.5657189 | D18: 262.20058 | E18: 21.1956266 | F18: 907.1431957 | G18: 1606.335012 | H18: 1726.093691 | I18: 186.5413871 | J18: -172.143659
B19: 531.9592958 | C19: 630.3339462 | D19: 188.5263294 | E19: -56.53198665 | F19: 714.7359099 | G19: 1338.641135 | H19: 1433.867582 | I19: 207.5737842 | J19: -135.8591822
B20: 697.4225379 | C20: 774.4974919 | D20: 372.0769364 | E20: 123.8062888 | F20: 947.2077156 | G20: 1565.107754 | H20: 1632.669516 | I20: 49.00144674 | J20: -276.3441548
B21: 575.4980839 | C21: 637.3248597 | D21: 255.0346234 | E21: -3.602061141 | F21: 722.3244497 | G21: 1285.426471 | H21: 1338.047201 | I21: 91.27469124 | J21: -229.1887692
B22: 663.2674147 | C22: 805.0465644 | D22: 355.3188954 | E22: 189.1495258 | F22: 1189.230033 | G22: 1969.971783 | H22: 2184.465145 | I22: 113.8681927 | J22: -194.0803266
B23: 668.7475516 | C23: 798.644301 | D23: 364.7619061 | E23: 190.6730101 | F23: 1118.92233 | G23: 1856.489509 | H23: 2059.329705 | I23: 142.3556664 | J23: -161.6299791
B24: 676.7874892 | C24: 794.9217295 | D24: 375.7749075 | E24: 192.8965661 | F24: 1058.904684 | G24: 1753.86912 | H24: 1946.13564 | I24: 164.5520461 | J24: -136.4605356
B25: 756.983012 | C25: 962.6817554 | D25: 403.6915727 | E25: 256.0988767 | F25: 1491.071171 | G25: 2496.066662 | H25: 2877.631564 | I25: 264.5729739 | J25: -88.71846547
B26: 947.4680356 | C26: 1151.131161 | D26: 596.0189721 | E26: 448.2330341 | F26: 1817.454939 | G26: 2893.604212 | H26: 3267.09836 | I26: 114.4966209 | J26: -236.9524426
B27: 1126.434753 | C27: 1413.925223 | D27: 780.8175484 | E27: 722.690815 | F27: 2295.458461 | G27: 3516.899221 | H27: 3879.227698 | I27: 55.77618159 | J27: -289.8410226
B28: 1201.756427 | C28: 1473.906059 | D28: 861.2682184 | E28: 792.9296422 | F28: 2364.196021 | G28: 3530.640479 | H28: 3877.73203 | I28: 1.10085227 | J28: -339.387356
B29: 1148.744332 | C29: 1400.127236 | D29: 818.7334887 | E29: 740.1055487 | F29: 2187.919517 | G29: 3278.359275 | H29: 3601.873203 | I29: 38.48745436 | J29: -291.5233893
B30: 1038.265461 | C30: 1274.286696 | D30: 714.9484931 | E30: 627.6527591 | F30: 1980.343472 | G30: 3014.720105 | H30: 3321.736641 | I30: 73.0022287 | J30: -250.3147397
B31: 1165.645442 | C31: 1390.747147 | D31: 844.0474729 | E31: 747.5512093 | F31: 2167.911534 | G31: 3211.149766 | H31: 3509.790935 | I31: -28.31980809 | J31: -349.9177769
B32: 1305.838011 | C32: 1622.532768 | D32: 985.5710148 | E32: 981.9987754 | F32: 2695.178922 | G32: 3965.067708 | H32: 4373.328048 | I32: -30.99629933 | J32: -351.2632958
B33: 1203.353528 | C33: 1510.986142 | D33: 884.7223082 | E33: 873.7237021 | F33: 2519.162142 | G33: 3755.597121 | H33: 4156.641287 | I33: 8.133392639 | J33: -310.4978271
B34: 1106.190939 | C34: 1404.970904 | D34: 789.3357998 | E34: 771.2606256 | F34: 2351.598321 | G34: 3555.440514 | H34: 3949.189858 | I34: 44.68185638 | J34: -272.1732826
B35: 1122.715781 | C35: 1409.761293 | D35: 808.9239898 | E35: 782.1777099 | F35: 2307.864894 | G35: 3469.209498 | H35: 3852.299509 | I35: 59.07743416 | J35: -254.7143574
B36: 1151.913002 | C36: 1431.355633 | D36: 838.9725379 | E36: 805.4747045 | F36: 2302.81512 | G36: 3434.980109 | H36: 3812.977431 | I36: 65.42309591 | J36: -247.5173682
B37: 1163.670202 | C37: 1433.992988 | D37: 851.899766 | E37: 810.4521169 | F37: 2262.033838 | G37: 3359.926093 | H37: 3731.46083 | I37: 84.13946027 | J37: -227.6309755
B38: 1029.763779 | C38: 1286.007604 | D38: 720.7812739 | E38: 668.0425947 | F38: 2022.721316 | G38: 3069.983335 | H38: 3429.708128 | I38: 135.4987332 | J38: -173.4837716
B39: 1204.962994 | C39: 1484.134599 | D39: 902.4973263 | E39: 879.2032643 | F39: 2368.107632 | G39: 3493.805866 | H39: 3835.806089 | I39: 16.3704012 | J39: -286.0952662
B40: 1360.964406 | C40: 1629.762962 | D40: 1060.807209 | E40: 1029.448568 | F40: 2605.96756 | G40: 3754.841116 | H40: 4087.939619 | I40: -105.5089818 | J40: -405.6661793
B41: 1442.459155 | C41: 1799.02829 | D41: 1118.966805 | E41: 1152.04359 | F41: 3069.73238 | G41: 4500.350957 | H41: 5022.945602 | I41: -34.97117371 | J41: -358.4635241
B42: 1326.204278 | C42: 1670.991118 | D42: 1005.225791 | E42: 1029.034144 | F42: 2864.304779 | G42: 4252.197637 | H42: 4764.757514 | I42: 8.819895919 | J42: -312.1585915
B43: 1435.360816 | C43: 1771.216175 | D43: 1115.59145 | E43: 1131.677444 | F43: 3017.154403 | G43: 4392.545449 | H43: 4898.665444 | I43: -68.10751308 | J43: -387.876879
B44: 1460.844475 | C44: 1788.396199 | D44: 1141.709517 | E44: 1150.126283 | F44: 3012.804807 | G44: 4355.479301 | H44: 4856.72434 | I44: -68.06012143 | J44: -387.1950796
B45: 1343.680699 | C45: 1664.922048 | D45: 1024.899165 | E45: 1027.358981 | F45: 2825.572337 | G45: 4141.993605 | H45: 4639.97878 | I45: -20.18241434 | J45: -338.963948
B46: 1271.358654 | C46: 1585.874252 | D46: 953.0201935 | E46: 949.1973316 | F46: 2681.995722 | G46: 3971.0614 | H46: 4465.347413 | I46: 27.19573924 | J46: -291.1427211
B47: 1361.138802 | C47: 1671.534899 | D47: 1043.007618 | E47: 1035.272532 | F47: 2803.823678 | G47: 4074.919549 | H47: 4567.203046 | I47: -19.21308624 | J47: -337.3442699
B48: 1446.418101 | C48: 1743.112732 | D48: 1130.324581 | E48: 1110.925692 | F48: 2908.533599 | G48: 4157.874062 | H48: 4639.721485 | I48: -90.18418383 | J48: -406.2777038
B49: 1553.808232 | C49: 1841.547686 | D49: 1239.014016 | E49: 1211.959253 | F49: 3056.552521 | G49: 4289.440824 | H49: 4764.675365 | I49: -164.2913875 | J49: -479.0856037
B50: 1445.271187 | C50: 1723.757024 | D50: 1131.95653 | E50: 1097.12771 | F50: 2871.080951 | G50: 4069.643392 | H50: 4537.803116 | I50: -122.1925298 | J50: -435.5071868
B51: 1326.473152 | C51: 1593.189257 | D51: 1015.513816 | E51: 971.2705868 | F51: 2661.948784 | G51: 3817.756514 | H51: 4276.106456 | I51: -76.97737308 | J51: -387.9367084
B52: 1307.670543 | C52: 1559.373603 | D52: 1000.729743 | E52: 945.4920026 | F52: 2546.865071 | G52: 3648.886402 | H52: 4093.331669 | I52: -39.64008151 | J52: -346.5808817
B53: 1286.145285 | C53: 1525.600455 | D53: 982.1922553 | E53: 917.6943965 | F53: 2435.501146 | G53: 3493.234397 | H53: 3926.774956 | I53: 2.550209746 | J53: -301.4028197
B54: 1155.108262 | C54: 1383.804863 | D54: 852.4325215 | E54: 778.453382 | F54: 2211.727132 | G54: 3229.270482 | H54: 3655.327291 | I54: 55.52774246 | J54: -247.1479979
B55: 1016.266764 | C55: 1232.451191 | D55: 715.1000742 | E55: 630.1178116 | F55: 1968.265206 | G55: 2939.627858 | H55: 3356.856988 | I55: 113.7839687 | J55: -187.3827209
B56: 1198.254402 | C56: 1426.01878 | D56: 898.7358944 | E56: 826.9817643 | F56: 2308.882428 | G56: 3363.823985 | H56: 3773.072291 | I56: -18.08658644 | J56: -317.6050943
B57: 1281.72257 | C57: 1601.566983 | D57: 882.9352098 | E57: 803.9922617 | F57: 2716.562291 | G57: 4140.698203 | H57: 4744.984285 | I57: 128.9795986 | J57: -269.807762
B58: 1341.32979 | C58: 1654.418164 | D58: 943.1446624 | E58: 858.0479095 | F58: 2775.245626 | G58: 4172.732005 | H58: 4772.869373 | I58: 105.4866548 | J58: -292.6984726
B59: 1203.065246 | C59: 1504.05959 | D59: 806.4046495 | E59: 710.738398 | F59: 2536.086441 | G59: 3888.939286 | H59: 4480.428013 | I59: 161.4505643 | J59: -235.2100317
B60: 1362.06835 | C60: 1674.586166 | D60: 967.9520164 | E60: 886.3534976 | F60: 2836.80163 | G60: 4263.554318 | H60: 4843.346923 | I60: 42.61277174 | J60: -351.5035622
B61: 1488.029907 | C61: 1792.731011 | D61: 1095.108732 | E61: 1006.888661 | F61: 3019.617831 | G61: 4441.048492 | H61: 5014.997855 | I61: -43.53524891 | J61: -436.4564238
B62: 1472.349959 | C62: 1764.608736 | D62: 1081.525332 | E62: 982.9594818 | F62: 2920.064907 | G62: 4296.236688 | H62: 4860.355985 | I62: -6.819319615 | J62: -397.6439466
B63: 1513.179048 | C63: 1792.022406 | D63: 1126.906654 | E63: 1019.477619 | F63: 2920.069955 | G63: 4247.688514 | H63: 4798.510422 | I63: -19.53892331 | J63: -405.8113167
B64: 1594.406148 | C64: 1863.181307 | D64: 1210.254608 | E64: 1094.878227 | F64: 3009.283818 | G64: 4300.095914 | H64: 4842.442813 | I64: -66.20529535 | J64: -450.3568352
B65: 1712.150321 | C65: 1974.742831 | D65: 1328.459843 | E65: 1207.361874 | F65: 3186.330543 | G65: 4476.170217 | H65: 5014.972477 | I65: -147.6004318 | J65: -531.2909102
B66: 1871.796943 | C66: 2125.028866 | D66: 1489.145874 | E66: 1359.726729 | F66: 3444.282052 | G66: 4780.668715 | H66: 5313.153837 | I66: -280.3042174 | J66: -662.9552856
B67: 2034.36943 | C67: 2280.989025 | D67: 1652.122305 | E67: 1516.494776 | F67: 3715.511428 | G67: 5104.767016 | H67: 5633.715336 | I67: -412.3348908 | J67: -794.5820156
B68: 2025.365172 | C68: 2266.73397 | D68: 1643.469418 | E68: 1502.942462 | F68: 3648.556399 | G68: 5016.103664 | H68: 5542.180027 | I68: -373.0084699 | J68: -754.9042241
B69: 2012.359328 | C69: 2247.26233 | D69: 1630.920377 | E69: 1484.384429 | F69: 3567.822839 | G69: 4909.200745 | H69: 5431.633602 | I69: -328.3216473 | J69: -709.7605978
B70: 2060.258673 | C70: 2289.592479 | D70: 1679.065967 | E70: 1527.207067 | F70: 3612.983167 | G70: 4930.290806 | H70: 5450.104395 | I70: -344.9094864 | J70: -726.1021922
B71: 2079.818422 | C71: 2304.15532 | D71: 1698.810895 | E71: 1542.140266 | F71: 3602.807664 | G71: 4897.8122 | H71: 5415.438831 | I71: -332.3519151 | J71: -713.3594424
B72: 2119.066959 | C72: 2334.502049 | D72: 1738.960161 | E72: 1574.288452 | F72: 3621.279497 | G72: 4882.224466 | H72: 5394.050398 | I72: -344.0813369 | J72: -724.1881351
B73: 2121.96697 | C73: 2331.237308 | D73: 1742.540503 | E73: 1572.384373 | F73: 3565.294035 | G73: 4802.258555 | H73: 5310.012667 | I73: -307.7619388 | J73: -687.1884065
B74: 2291.731499 | C74: 2527.74646 | D74: 1915.483973 | E74: 1775.25141 | F74: 3912.913455 | G74: 5239.725374 | H74: 5735.041303 | I74: -417.8211449 | J74: -794.0686699
B75: 2361.643245 | C75: 2684.40956 | D75: 1794.918859 | E75: 1550.960789 | F75: 4189.043666 | G75: 5961.020077 | H75: 6645.395515 | I75: -174.7260361 | J75: -741.4504219
B76: 2456.25568 | C76: 2872.245808 | D76: 1890.055168 | E76: 1739.844784 | F76: 4711.245633 | G76: 6752.285326 | H76: 7624.581864 | I76: -134.7230314 | J76: -700.9235433
B77: 2579.082425 | C77: 2987.977529 | D77: 2013.447884 | E77: 1856.708448 | F77: 4898.830909 | G77: 6947.716246 | H77: 7815.81217 | I77: -224.9672463 | J77: -790.601787
B78: 2723.228114 | C78: 3218.86723 | D78: 2159.490665 | E78: 2091.392333 | F78: 5351.809063 | G78: 7567.417621 | H78: 8455.551531 | I78: -253.5296889 | J78: -817.2671375
B79: 2876.133888 | C79: 3357.784957 | D79: 2315.159663 | E79: 2235.836509 | F79: 5585.983582 | G79: 7837.299422 | H79: 8713.701785 | I79: -388.494122 | J79: -949.4683464
B80: 2774.761258 | C80: 3247.880095 | D80: 2215.182774 | E80: 2128.723128 | F80: 5413.412786 | G80: 7633.01488 | H80: 8502.857063 | I80: -349.4528332 | J80: -909.0313168
B81: 2832.038116 | C81: 3288.998714 | D81: 2275.990712 | E81: 2176.903905 | F81: 5453.524111 | G81: 7616.180117 | H81: 8471.904932 | I81: -394.8793861 | J81: -950.9267905
B82: 2994.664976 | C82: 3500.450781 | D82: 2441.832775 | E82: 2394.786378 | F82: 5833.38727 | G82: 8105.790991 | H82: 8948.43585 | I82: -478.7200206 | J82: -1031.552222
B83: 2868.864599 | C83: 3357.017339 | D83: 2322.997612 | E83: 2265.283366 | F83: 5595.563033 | G83: 7804.369311 | H83: 8628.469341 | I83: -438.1401831 | J83: -984.0071695
B84: 3007.77159 | C84: 3573.787492 | D84: 2473.803806 | E84: 2505.851924 | F84: 6032.856621 | G84: 8387.286262 | H84: 9239.711715 | I84: -474.6118726 | J84: -1008.579657
B85: 2907.580584 | C85: 3452.724587 | D85: 2384.933291 | E85: 2407.430001 | F85: 5810.898906 | G85: 8088.381095 | H85: 8916.612853 | I85: -439.654553 | J85: -962.3018464
B86: 2774.607459 | C86: 3296.963427 | D86: 2265.395995 | E86: 2278.540499 | F86: 5548.59796 | G86: 7741.442677 | H86: 8542.54482 | I86: -405.8204539 | J86: -915.0319182
B87: 2941.497337 | C87: 3444.288112 | D87: 2444.078996 | E87: 2449.451429 | F87: 5788.364919 | G87: 7993.020136 | H87: 8770.871916 | I87: -560.6434788 | J87: -1058.06182
B88: 2826.240096 | C88: 3317.010312 | D88: 2331.544181 | E88: 2327.618482 | F88: 5583.599256 | G88: 7744.772496 | H88: 8512.166183 | I88: -517.654823 | J88: -1012.350738
B89: 2971.22654 | C89: 3547.442518 | D89: 2480.384333 | E89: 2565.758104 | F89: 6056.109035 | G89: 8395.116042 | H89: 9209.077276 | I89: -542.2733271 | J89: -1033.115534
B90: 3010.610522 | C90: 3566.729714 | D90: 2527.916762 | E90: 2601.342194 | F90: 6046.424963 | G90: 8313.194316 | H90: 9105.70968 | I90: -574.9415018 | J90: -1057.635262
B91: 3066.216556 | C91: 3607.596865 | D91: 2587.390834 | E91: 2649.945422 | F91: 6080.264561 | G91: 8294.246105 | H91: 9073.185086 | I91: -610.9680966 | J91: -1089.793818
B92: 3126.738333 | C92: 3656.918569 | D92: 2649.809506 | E92: 2703.060915 | F92: 6132.522871 | G92: 8305.553643 | H92: 9075.666103 | I92: -645.1313704 | J92: -1122.060197
B93: 3008.245434 | C93: 3527.715324 | D93: 2533.05614 | E93: 2577.336735 | F93: 5927.382329 | G93: 8061.087832 | H93: 8822.896005 | I93: -598.919054 | J93: -1074.108348
B94: 3094.879369 | C94: 3606.429197 | D94: 2620.710435 | E94: 2658.091328 | F94: 6034.667833 | G94: 8138.397593 | H94: 8894.614732 | I94: -648.9218412 | J94: -1123.090776
B95: 2957.059239 | C95: 3448.707082 | D95: 2490.553878 | E95: 2515.696359 | F95: 5771.598365 | G95: 7804.012859 | H95: 8539.315515 | I95: -604.2929406 | J95: -1070.798302
B96: 3078.530152 | C96: 3652.241039 | D96: 2620.848953 | E96: 2736.87864 | F96: 6244.499863 | G96: 8471.143156 | H96: 9306.352731 | I96: -609.6274759 | J96: -1067.308675
B97: 3173.336325 | C97: 3831.997332 | D97: 2585.805475 | E97: 2656.935633 | F97: 6608.96162 | G97: 9217.303589 | H97: 10235.94489 | I97: -441.0009694 | J97: -1028.531819
B98: 3271.217117 | C98: 3905.755237 | D98: 2700.218063 | E98: 2763.757129 | F98: 6705.438869 | G98: 9252.403328 | H98: 10241.10006 | I98: -541.9106574 | J98: -1112.909711
B99: 3188.523154 | C99: 3803.132949 | D99: 2628.93479 | E99: 2683.95622 | F99: 6507.400358 | G99: 8980.335109 | H99: 9945.642678 | I99: -509.7402501 | J99: -1069.328614
B100: 3304.545245 | C100: 4004.537601 | D100: 2749.505477 | E100: 2894.458065 | F100: 6988.842059 | G100: 9674.237391 | H100: 10755.35453 | I100: -503.2026044 | J100: -1058.242372
B101: 3189.444079 | C101: 3874.086577 | D101: 2640.262265 | E101: 2775.722948 | F101: 6774.056596 | G101: 9403.927167 | H101: 10469.16431 | I101: -465.4478808 | J101: -1014.629695
B102: 3324.864371 | C102: 3988.309704 | D102: 2785.374956 | E102: 2909.330874 | F102: 6953.520767 | G102: 9578.627336 | H102: 10620.38991 | I102: -596.5578259 | J102: -1136.047241
B103: 3494.174618 | C103: 4148.08758 | D103: 2964.757677 | E103: 3089.253697 | F103: 7222.244709 | G103: 9883.419925 | H103: 10902.0363 | I103: -747.7148254 | J103: -1277.131767
B104: 3592.441034 | C104: 4333.487973 | D104: 3066.42517 | E104: 3281.456246 | F104: 7715.515945 | G104: 10617.32401 | H104: 11798.13793 | I104: -719.1201801 | J104: -1245.136043
B105: 3579.017147 | C105: 4299.936038 | D105: 3062.968414 | E105: 3267.838572 | F105: 7596.922636 | G105: 10425.16271 | H105: 11583.24853 | I105: -697.0629976 | J105: -1213.11173
B106: 3668.383517 | C106: 4374.306634 | D106: 3157.562524 | E106: 3352.664647 | F106: 7692.801303 | G106: 10473.00949 | H106: 11616.00815 | I106: -763.6497756 | J106: -1274.470769
B107: 3554.792138 | C107: 4247.780816 | D107: 3047.53019 | E107: 3233.25692 | F107: 7487.560284 | G107: 10221.15394 | H107: 11352.13306 | I107: -722.8229884 | J107: -1230.084936
B108: 3501.932448 | C108: 4177.788189 | D108: 3004.155275 | E108: 3182.233844 | F108: 7333.375825 | G108: 10003.31259 | H108: 11114.49823 | I108: -692.6905052 | J108: -1190.467678
B109: 3685.087078 | C109: 4375.919067 | D109: 3202.617408 | E109: 3410.979727 | F109: 7674.356542 | G109: 10399.61791 | H109: 11484.47838 | I109: -831.9130321 | J109: -1314.382702
B110: 3561.130326 | C110: 4224.941753 | D110: 3108.207264 | E110: 3319.09563 | F110: 7422.818906 | G110: 10035.93518 | H110: 11083.16878 | I110: -823.0206956 | J110: -1275.943757
B111: 3454.786803 | C111: 4099.672473 | D111: 3016.177477 | E111: 3222.453821 | F111: 7213.855477 | G111: 9753.725684 | H111: 10777.14689 | I111: -800.9904575 | J111: -1239.599784
B112: 3334.331247 | C112: 3947.201409 | D112: 2955.035396 | E112: 3188.609705 | F112: 6975.463856 | G112: 9359.183945 | H112: 10332.8838 | I112: -828.8222687 | J112: -1208.11812
B113: 3216.170934 | C113: 3809.355444 | D113: 2848.862693 | E113: 3074.738962 | F113: 6744.86032 | G113: 9054.861233 | H113: 10005.09203 | I113: -798.905058 | J113: -1166.213299
B114: 3293.131436 | C114: 3959.358184 | D114: 2432.008582 | E114: 2237.112477 | F114: 6671.454942 | G114: 9692.882061 | H114: 10805.41143 | I114: -267.1138924 | J114: -1128.236746
B115: 3383.464206 | C115: 4133.05424 | D115: 2495.054994 | E115: 2356.235816 | F115: 7125.803518 | G115: 10421.71988 | H115: 11715.34898 | I115: -199.9401086 | J115: -1088.349321
B116: 3264.787741 | C116: 3996.964589 | D116: 2384.365181 | E116: 2236.119467 | F116: 6899.799272 | G116: 10132.20217 | H116: 11406.72621 | I116: -163.956952 | J116: -1044.379513
B117: 3417.330017 | C117: 4222.154844 | D117: 2569.039079 | E117: 2525.572966 | F117: 7351.45768 | G117: 10693.24388 | H117: 11979.08975 | I117: -233.8073191 | J117: -1082.098258
B118: 3370.061742 | C118: 4146.788552 | D118: 2559.072086 | E118: 2524.80924 | F118: 7181.057107 | G118: 10400.00896 | H118: 11645.06135 | I118: -235.7625384 | J118: -1046.752194
B119: 3245.72152 | C119: 3995.999584 | D119: 2462.019963 | E119: 2428.59647 | F119: 6929.151841 | G119: 10039.82072 | H119: 11248.55508 | I119: -223.8617714 | J119: -1007.563328
B120: 3159.819895 | C120: 3886.84017 | D120: 2398.063152 | E120: 2363.326686 | F120: 6726.72258 | G120: 9743.860189 | H120: 10921.47764 | I120: -208.2244022 | J120: -969.9811445
B121: 3154.259671 | C121: 3859.468854 | D121: 2413.966199 | E121: 2378.881911 | F121: 6616.202717 | G121: 9544.726497 | H121: 10692.9565 | I121: -198.0854871 | J121: -938.3789587
B122: 3043.50793 | C122: 3731.631506 | D122: 2312.413594 | E122: 2269.442835 | F122: 6403.699526 | G122: 9268.924303 | H122: 10397.56981 | I122: -167.1753583 | J122: -898.269694
B123: 2937.577897 | C123: 3611.958735 | D123: 2211.759085 | E123: 2160.32111 | F123: 6207.60266 | G123: 9022.908571 | H123: 10137.38311 | I123: -132.4077097 | J123: -858.2265221
B124: 3048.065123 | C124: 3708.171664 | D124: 2327.509655 | E124: 2267.060728 | F124: 6344.967689 | G124: 9129.59208 | H124: 10229.49972 | I124: -216.6752991 | J124: -937.230767
B125: 3125.795595 | C125: 3870.751258 | D125: 1918.927628 | E125: 1457.015324 | F125: 6328.791994 | G125: 9850.04818 | H125: 11135.2497 | I125: 317.0721119 | J125: -889.7958552
B126: 3005.597386 | C126: 3732.890982 | D126: 1806.759662 | E126: 1335.215534 | F126: 6099.708133 | G126: 9556.624225 | H126: 10822.47907 | I126: 353.6248837 | J126: -845.2128404
B127: 2905.437459 | C127: 3621.813039 | D127: 1709.64277 | E127: 1230.223661 | F127: 5920.863247 | G127: 9338.14862 | H127: 10593.89476 | I127: 389.4470929 | J127: -806.347596
B128: 2787.446414 | C128: 3483.600415 | D128: 1604.786791 | E128: 1118.281169 | F128: 5689.427303 | G128: 9030.372684 | H128: 10261.57231 | I128: 417.6807389 | J128: -764.9788842
B129: 2929.32217 | C129: 3701.433201 | D129: 1771.060657 | E129: 1384.910175 | F129: 6155.849753 | G129: 9640.580981 | H129: 10923.03351 | I129: 372.2580368 | J129: -786.0034762
B130: 2801.075782 | C130: 3544.814881 | D130: 1674.294234 | E130: 1291.251784 | F130: 5894.763173 | G130: 9261.394426 | H130: 10504.13643 | I130: 380.2719116 | J130: -746.5096368
B131: 2694.984532 | C131: 3418.396648 | D131: 1586.116662 | E131: 1200.660909 | F131: 5683.670812 | G131: 8969.510876 | H131: 10185.63789 | I131: 397.6770799 | J131: -711.1907896
B132: 2631.413484 | C132: 3334.096018 | D132: 1539.34519 | E132: 1149.95943 | F132: 5510.554653 | G132: 8715.333665 | H132: 9904.837867 | I132: 418.4106343 | J132: -673.6576597
B133: 2517.96817 | C133: 3201.437951 | D133: 1433.319801 | E133: 1032.141213 | F133: 5275.737271 | G133: 8411.555977 | H133: 9580.893124 | I133: 461.9773895 | J133: -622.6709799
B134: 2698.126745 | C134: 3432.523845 | D134: 1620.769787 | E134: 1277.809927 | F134: 5684.806928 | G134: 8926.653018 | H134: 10077.65534 | I134: 367.5134416 | J134: -709.843517
B135: 2845.125094 | C135: 3659.291077 | D135: 1775.818247 | E135: 1520.677383 | F135: 6120.545679 | G135: 9504.787374 | H135: 10664.30686 | I135: 326.5968488 | J135: -742.7099982
B136: 2714.180424 | C136: 3510.948833 | D136: 1650.73513 | E136: 1384.058244 | F136: 5875.363497 | G136: 9197.355965 | H136: 10339.42433 | I136: 371.1905213 | J136: -692.2547733
B137: 2885.853972 | C137: 3688.575565 | D137: 1828.269456 | E137: 1573.406533 | F137: 6181.261597 | G137: 9565.151691 | H137: 10690.03656 | I137: 237.64202 | J137: -819.942496
B138: 2748.344345 | C138: 3530.301425 | D138: 1699.619226 | E138: 1432.851187 | F138: 5916.347615 | G138: 9225.416844 | H138: 10327.77482 | I138: 280.2259517 | J138: -768.4991674
B139: 2847.958868 | C139: 3719.458981 | D139: 1671.888837 | E139: 1367.318921 | F139: 6308.665259 | G139: 10009.71061 | H139: 11302.68749 | I139: 446.7708341 | J139: -729.2991961
B140: 3003.936642 | C140: 3957.340729 | D140: 1837.769756 | E140: 1625.006958 | F140: 6786.833179 | G140: 10649.82173 | H140: 11979.91085 | I140: 407.4048413 | J140: -758.7620443
B141: 2875.815198 | C141: 3803.962625 | D141: 1730.877698 | E141: 1514.087626 | F141: 6528.749832 | G141: 10292.70435 | H141: 11589.76473 | I141: 428.5680308 | J141: -716.3694685
B142: 2753.171575 | C142: 3654.797663 | D142: 1636.955468 | E142: 1422.36545 | F142: 6280.259945 | G142: 9934.365723 | H142: 11194.61247 | I142: 438.0366461 | J142: -678.1794607
B143: 2945.052737 | C143: 3870.365106 | D143: 1864.802975 | E143: 1709.865582 | F143: 6661.625081 | G143: 10351.65923 | H143: 11574.8141 | I143: 282.5196295 | J143: -797.7301324
B144: 3029.91026 | C144: 4029.500151 | D144: 1847.059135 | E144: 1663.7979 | F144: 6995.27791 | G144: 11009.36904 | H144: 12395.94855 | I144: 419.981529 | J144: -762.8695966
B145: 3189.147824 | C145: 4163.031296 | D145: 2037.079918 | E145: 1858.895485 | F145: 7211.552181 | G145: 11191.33791 | H145: 12541.50665 | I145: 249.4147969 | J145: -902.6531085
B146: 3261.844842 | C146: 4308.247695 | D146: 1644.563829 | E146: 1073.685669 | F146: 7158.806699 | G146: 11819.76062 | H146: 13331.98598 | I146: 754.4720605 | J146: -862.8089524
B147: 3405.055608 | C147: 4428.904829 | D147: 1807.548745 | E147: 1233.891103 | F147: 7345.314009 | G147: 11975.89998 | H147: 13458.48449 | I147: 613.8737727 | J147: -983.6330901
B148: 3294.983369 | C148: 4297.465747 | D148: 1716.664353 | E148: 1140.827716 | F148: 7125.959288 | G148: 11671.38844 | H148: 13125.79756 | I148: 630.8803348 | J148: -947.4386804
B149: 3370.111137 | C149: 4443.284457 | D149: 1579.030154 | E149: 861.1224911 | F149: 7321.19097 | G149: 12290.21806 | H149: 13902.12482 | I149: 880.3468899 | J149: -910.7340933
B150: 3250.716593 | C150: 4299.213147 | D150: 1483.974968 | E150: 765.7298957 | F150: 7080.475479 | G150: 11949.4103 | H150: 13527.8596 | I150: 894.1800713 | J150: -872.5615543
B151: 3264.57127 | C151: 4288.231376 | D151: 1525.613818 | E151: 810.3164713 | F151: 7006.261661 | G151: 11771.39355 | H151: 13315.21537 | I151: 873.1117474 | J151: -865.8457051
B152: 3153.452941 | C152: 4152.86437 | D152: 1442.99401 | E152: 731.9465064 | F152: 6782.6653 | G152: 11445.12249 | H152: 12954.81198 | I152: 878.7114133 | J152: -831.7475184
B153: 3291.834815 | C153: 4259.669487 | D153: 1642.226052 | E153: 960.4519607 | F153: 6963.456419 | G153: 11525.57782 | H153: 12985.91599 | I153: 692.2205842 | J153: -957.3881788
B154: 3479.174218 | C154: 4445.601542 | D154: 1883.406194 | E154: 1254.065493 | F154: 7297.135093 | G154: 11844.3607 | H154: 13259.26561 | I154: 496.2260006 | J154: -1099.542024
B155: 3562.621413 | C155: 4599.017703 | D155: 1981.936742 | E155: 1437.648361 | F155: 7728.21459 | G155: 12469.38281 | H155: 14038.28946 | I155: 512.5023395 | J155: -1068.182331
B156: 3695.851676 | C156: 4701.51995 | D156: 2161.709504 | E156: 1633.235605 | F156: 7892.175197 | G156: 12550.59684 | H156: 14073.5374 | I156: 343.6218552 | J156: -1190.520317
B157: 3579.825844 | C157: 4557.427837 | D157: 2087.110698 | E157: 1571.997545 | F157: 7658.7078 | G157: 12190.4138 | H157: 13671.73796 | I157: 335.2481814 | J157: -1157.466964
B158: 3452.87608 | C158: 4407.234637 | D158: 1976.702632 | E158: 1454.887742 | F158: 7405.909818 | G158: 11848.96317 | H158: 13301.2092 | I158: 362.2879689 | J158: -1113.885479
B159: 3527.56281 | C159: 4559.051519 | D159: 1970.718462 | E159: 1445.362825 | F159: 7759.684545 | G159: 12512.42826 | H159: 14136.06426 | I159: 485.9803876 | J159: -1070.86396
B160: 3617.229116 | C160: 4626.663769 | D160: 2078.970356 | E160: 1550.146248 | F160: 7839.71128 | G160: 12510.82702 | H160: 14105.77875 | I160: 400.7735273 | J160: -1137.485233
B161: 3513.831502 | C161: 4508.582876 | D161: 1982.484659 | E161: 1445.88919 | F161: 7644.914732 | G161: 12262.09336 | H161: 13840.92999 | I161: 432.0075266 | J161: -1099.339317
B162: 3596.736976 | C162: 4668.484978 | D162: 1952.827251 | E162: 1380.665529 | F162: 7977.43107 | G162: 12936.2483 | H162: 14684.73563 | I162: 583.0372422 | J162: -1060.872483
B163: 3659.826005 | C163: 4713.098426 | D163: 2025.711527 | E163: 1444.86947 | F163: 8011.953455 | G163: 12902.59524 | H163: 14629.91073 | I163: 535.0053025 | J163: -1099.109176
B164: 3745.971015 | C164: 4873.956419 | D164: 2135.44757 | E164: 1652.909529 | F164: 8461.87005 | G164: 13541.21971 | H164: 15414.60212 | I164: 541.4395871 | J164: -1069.083858
B165: 3713.345277 | C165: 4822.542484 | D165: 2117.802148 | E165: 1631.456226 | F165: 8328.847651 | G165: 13334.82064 | H165: 15184.2495 | I165: 561.5181086 | J165: -1034.025021
B166: 3764.128862 | C166: 4850.860551 | D166: 2191.748299 | E166: 1706.099423 | F166: 8330.009326 | G166: 13243.7913 | H166: 15062.57854 | I166: 513.1018415 | J166: -1059.278722
B167: 3906.29259 | C167: 5067.168547 | D167: 2365.156455 | E167: 1984.896277 | F167: 8796.015717 | G167: 13841.60501 | H167: 15707.67901 | I167: 458.9787351 | J167: -1082.1574
B168: 3843.276893 | C168: 4977.707175 | D168: 2336.633796 | E168: 1964.420981 | F168: 8615.868022 | G168: 13546.36318 | H168: 15374.25342 | I168: 458.5899541 | J168: -1048.053143
B169: 4038.79467 | C169: 5255.488325 | D169: 2540.435291 | E169: 2258.769566 | F169: 9114.636946 | G169: 14186.44276 | H169: 15998.98255 | I169: 386.7784723 | J169: -1111.580907
B170: 4143.11493 | C170: 5337.950031 | D170: 2661.720548 | E170: 2375.161267 | F170: 9224.668306 | G170: 14233.76856 | H170: 16018.44265 | I170: 287.6260161 | J170: -1193.768366
B171: 4017.986762 | C171: 5190.514021 | D171: 2551.648499 | E171: 2257.837495 | F171: 8976.753203 | G171: 13901.39372 | H171: 15658.57481 | I171: 315.9964188 | J171: -1150.341844
B172: 4091.984152 | C172: 5337.312331 | D172: 2306.261804 | E172: 1765.867635 | F172: 9072.779374 | G172: 14533.61624 | H172: 16453.21271 | I172: 674.7857817 | J172: -1110.936566
B173: 4000.014132 | C173: 5223.265093 | D173: 2230.40993 | E173: 1684.056689 | F173: 8861.568197 | G173: 14237.75826 | H173: 16129.61521 | I173: 700.0557688 | J173: -1069.548433
B174: 3889.485248 | C174: 5093.225263 | D174: 2133.943263 | E174: 1582.141294 | F174: 8644.213543 | G174: 13945.54657 | H174: 15813.10222 | I174: 724.0474044 | J174: -1031.49458
B175: 4079.135368 | C175: 5326.543877 | D175: 2345.584453 | E175: 1859.442048 | F175: 9055.236385 | G175: 14431.87649 | H175: 16269.287 | I175: 603.5350145 | J175: -1130.0159
B176: 4266.643565 | C176: 5512.743773 | D176: 2564.763079 | E176: 2108.982802 | F176: 9376.478424 | G176: 14768.19629 | H176: 16569.43284 | I176: 429.7023201 | J176: -1272.178165
B177: 4442.337519 | C177: 5662.425481 | D177: 2772.885155 | E177: 2323.520753 | F177: 9627.003387 | G177: 15001.74046 | H177: 16764.14701 | I177: 238.0045689 | J177: -1431.447795
B178: 4421.947385 | C178: 5620.53507 | D178: 2773.45403 | E178: 2323.548361 | F178: 9499.500111 | G178: 14787.06734 | H178: 16520.55939 | I178: 251.702379 | J178: -1396.790976
B179: 4568.977049 | C179: 5742.887262 | D179: 2950.723986 | E179: 2506.381135 | F179: 9692.031567 | G179: 14931.97056 | H179: 16630.3781 | I179: 97.08366065 | J179: -1521.169403
B180: 4451.28902 | C180: 5603.074385 | D180: 2850.645836 | E180: 2401.788016 | F180: 9457.588334 | G180: 14611.43293 | H180: 16281.43866 | I180: 119.0625141 | J180: -1481.58067
B181: 4543.65401 | C181: 5774.084629 | D181: 2648.371042 | E181: 1983.518694 | F181: 9627.759574 | G181: 15310.43205 | H181: 17151.87283 | I181: 448.6270777 | J181: -1446.65589
B182: 4417.239144 | C182: 5618.266999 | D182: 2558.93801 | E182: 1901.66473 | F182: 9370.278238 | G182: 14926.48709 | H182: 16725.57267 | I182: 449.1300577 | J182: -1409.171077
B183: 4301.546427 | C183: 5476.631768 | D183: 2474.865904 | E183: 1823.270722 | F183: 9136.488761 | G183: 14581.89006 | H183: 16344.05425 | I183: 452.4778767 | J183: -1374.202646
B184: 4481.074753 | C184: 5628.714774 | D184: 2695.596214 | E184: 2057.757696 | F184: 9395.289475 | G184: 14810.77858 | H184: 16531.1729 | I184: 249.0996603 | J184: -1536.378879
B185: 4377.163819 | C185: 5505.566269 | D185: 2607.668356 | E185: 1966.575344 | F185: 9190.006585 | G185: 14529.8449 | H185: 16225.43099 | I185: 267.95067 | J185: -1501.544792
B186: 4391.462517 | C186: 5493.373479 | D186: 2648.949339 | E186: 2008.347121 | F186: 9115.136165 | G186: 14346.86842 | H186: 16006.14726 | I186: 241.3380807 | J186: -1501.175098
B187: 4474.22368 | C187: 5649.642691 | D187: 2748.371814 | E187: 2197.938959 | F187: 9561.973871 | G187: 14996.22095 | H187: 16817.66467 | I187: 259.9505675 | J187: -1465.901298
B188: 4356.80417 | C188: 5502.25145 | D188: 2681.18342 | E188: 2151.009949 | F188: 9327.309794 | G188: 14620.50264 | H188: 16396.29819 | I188: 241.631764 | J188: -1433.988986
B189: 4240.288664 | C189: 5356.587969 | D189: 2611.250226 | E189: 2098.511092 | F189: 9093.726633 | G189: 14251.92059 | H189: 15983.75765 | I189: 227.2970058 | J189: -1401.741433
B190: 4275.583015 | C190: 5363.840809 | D190: 2689.195159 | E190: 2191.065097 | F190: 9063.352784 | G190: 14093.72696 | H190: 15783.73178 | I190: 167.0084389 | J190: -1419.379417
B191: 4166.656636 | C191: 5231.019074 | D191: 2608.923091 | E191: 2115.551983 | F191: 8844.357186 | G191: 13773.00232 | H191: 15429.23418 | I191: 171.6186263 | J191: -1386.114919
B192: 4048.989341 | C192: 5093.930447 | D192: 2502.786235 | E192: 2001.524236 | F192: 8615.031834 | G192: 13471.17318 | H192: 15104.40564 | I192: 202.0132828 | J192: -1344.189823
B193: 4164.629263 | C193: 5288.134683 | D193: 2632.245567 | E193: 2223.367291 | F193: 9071.906692 | G193: 14108.34645 | H193: 15837.52348 | I193: 192.415861 | J193: -1339.967835
B194: 4154.773309 | C194: 5260.427573 | D194: 2634.046151 | E194: 2218.973259 | F194: 8961.46011 | G194: 13930.27397 | H194: 15637.85683 | I194: 217.8588459 | J194: -1302.868311
B195: 4043.583928 | C195: 5128.282599 | D195: 2535.116408 | E195: 2111.347559 | F195: 8730.239559 | G195: 13621.12938 | H195: 15303.90226 | I195: 250.2132619 | J195: -1258.254258
B196: 4075.001516 | C196: 5141.408616 | D196: 2576.332148 | E196: 2144.069879 | F196: 8701.351647 | G196: 13524.65514 | H196: 15186.4149 | I196: 234.6309193 | J196: -1264.038449
B197: 4079.237143 | C197: 5122.456734 | D197: 2595.47651 | E197: 2154.935469 | F197: 8611.930121 | G197: 13348.15675 | H197: 14981.63652 | I197: 230.4455683 | J197: -1253.315065
B198: 4184.190234 | C198: 5212.147087 | D198: 2707.494874 | E198: 2258.756367 | F198: 8733.875725 | G198: 13426.18014 | H198: 15042.95791 | I198: 150.962834 | J198: -1325.732526
B199: 4093.510778 | C199: 5106.758349 | D199: 2623.516697 | E199: 2166.770187 | F199: 8550.992124 | G199: 13189.41211 | H199: 14790.19094 | I199: 183.040205 | J199: -1286.953876
B200: 4108.439059 | C200: 5108.905898 | D200: 2643.094762 | E200: 2178.217304 | F200: 8497.534686 | G200: 13089.55033 | H200: 14677.39053 | I200: 200.1450851 | J200: -1265.199212
... 29 more rows

Sheet NovaDB
A1: Date | B1: Open | C1: High | D1: Low | E1: Close | F1: Adj Close | G1: Volume | H1: DATE/TIME: 20140831 23:59:59 to 20150831 23:59:59 | I1: IV Open | J1: IV High | K1: IV LOW | L1: IV Close
A2: 2015-01-02 | B2: 94.129997 | C2: 95.000000 | D2: 93.050003 | E2: 93.260002 | F2: 79.688843 | G2: 6019700 | H2: 20150102 16:00:00 | I2: 0.23575232 | J2: 0.24226086 | K2: 0.22668797 | L2: 0.22721183
A3: 2015-01-05 | B3: 93.300003 | C3: 93.680000 | D3: 92.220001 | E3: 92.230003 | F3: 78.808716 | G3: 6211900 | H3: 20150105 16:00:00 | I3: 0.23495859 | J3: 0.23567294 | K3: 0.22972 | L3: 0.23062485
A4: 2015-01-06 | B4: 92.669998 | C4: 93.809998 | D4: 91.879997 | E4: 92.400002 | F4: 78.954002 | G4: 6484100 | H4: 20150106 16:00:00 | I4: 0.23391087 | J4: 0.24121315 | K4: 0.23064072 | L4: 0.23587931
A5: 2015-01-07 | B5: 93.260002 | C5: 94.050003 | D5: 92.860001 | E5: 94.010002 | F5: 80.329689 | G5: 6400300 | H5: 20150107 16:00:00 | I5: 0.23037086 | J5: 0.2386891 | K5: 0.22867229 | L5: 0.23106934
A6: 2015-01-08 | B6: 94.230003 | C6: 94.980003 | D6: 94.050003 | E6: 94.360001 | F6: 80.628761 | G6: 5476700 | H6: 20150108 16:00:00 | I6: 0.22871991 | J6: 0.23430774 | K6: 0.22557676 | L6: 0.22795793
A7: 2015-01-09 | B7: 93.970001 | C7: 93.970001 | D7: 92.779999 | E7: 93.209999 | F7: 79.646103 | G7: 4283300 | H7: 20150109 16:00:00 | I7: 0.2272912 | J7: 0.23013274 | K7: 0.22402106 | L7: 0.22543389
A8: 2015-01-12 | B8: 93.529999 | C8: 93.809998 | D8: 92.599998 | E8: 93.010002 | F8: 79.475227 | G8: 3989600 | H8: 20150112 16:00:00 | I8: 0.22727533 | J8: 0.23248217 | K8: 0.22602124 | L8: 0.22854529
A9: 2015-01-13 | B9: 93.949997 | C9: 94.440002 | D9: 92.419998 | E9: 92.830002 | F9: 79.321396 | G9: 5971200 | H9: 20150113 16:00:00 | I9: 0.22787856 | J9: 0.22927552 | K9: 0.21609968 | L9: 0.22427505
A10: 2015-01-14 | B10: 91.449997 | C10: 92.050003 | D10: 91.120003 | E10: 91.540001 | F10: 78.219139 | G10: 7745500 | H10: 20150114 16:00:00 | I10: 0.22886278 | J10: 0.23527608 | K10: 0.22797381 | L10: 0.23287903
A11: 2015-01-15 | B11: 91.970001 | C11: 92.349998 | D11: 90.970001 | E11: 91.379997 | F11: 78.082413 | G11: 5737500 | H11: 20150115 16:00:00 | I11: 0.23427599 | J11: 0.23560945 | K11: 0.22864054 | L11: 0.229847
A12: 2015-01-16 | B12: 91.050003 | C12: 91.690002 | D12: 90.739998 | E12: 91.489998 | F12: 78.176399 | G12: 6927000 | H12: 20150116 16:00:00 | I12: 0.23011687 | J12: 0.23526021 | K12: 0.21771888 | L12: 0.21771888
A13: 2015-01-20 | B13: 91.639999 | C13: 91.879997 | D13: 90.230003 | E13: 90.800003 | F13: 77.586807 | G13: 6967300 | H13: 20150120 16:00:00 | I13: 0.21605205 | J13: 0.21941745 | K13: 0.20425729 | L13: 0.20728932
A14: 2015-01-21 | B14: 90.160004 | C14: 90.459999 | D14: 89.540001 | E14: 90.339996 | F14: 77.193748 | G14: 8682200 | H14: 20150121 16:00:00 | I14: 0.20870215 | J14: 0.20925776 | K14: 0.19112907 | L14: 0.19351025
A15: 2015-01-22 | B15: 90.620003 | C15: 90.970001 | D15: 89.839996 | E15: 90.889999 | F15: 77.663734 | G15: 7536400 | H15: 20150122 16:00:00 | I15: 0.19106558 | J15: 0.19644703 | K15: 0.18519201 | L15: 0.19004961
A16: 2015-01-23 | B16: 90.919998 | C16: 91.639999 | D16: 89.430000 | E16: 89.559998 | F16: 76.527252 | G16: 11496000 | H16: 20150123 16:00:00 | I16: 0.17347662 | J16: 0.17419097 | K16: 0.14769642 | L16: 0.15079195
A17: 2015-01-26 | B17: 89.389999 | C17: 90.699997 | D17: 89.290001 | E17: 90.669998 | F17: 77.475716 | G17: 7753300 | H17: 20150126 16:00:00 | I17: 0.15674489 | J17: 0.15876095 | K17: 0.14458502 | L17: 0.14736306
A18: 2015-01-27 | B18: 89.959999 | C18: 90.309998 | D18: 89.559998 | E18: 89.570000 | F18: 76.535812 | G18: 6640800 | H18: 20150127 16:00:00 | I18: 0.15177617 | J18: 0.15304613 | K18: 0.14782342 | L18: 0.14985535
A19: 2015-01-28 | B19: 89.739998 | C19: 89.820000 | D19: 88.769997 | E19: 88.779999 | F19: 75.860756 | G19: 6921300 | H19: 20150128 16:00:00 | I19: 0.15049033 | J19: 0.15920544 | K19: 0.14858539 | L19: 0.15844346
A20: 2015-01-29 | B20: 91.500000 | C20: 93.500000 | D20: 91.260002 | E20: 93.269997 | F20: 79.697380 | G20: 19146900 | H20: 20150129 16:00:00 | I20: 0.15264927 | J20: 0.16993661 | K20: 0.15222066 | L20: 0.16353918
A21: 2015-01-30 | B21: 92.650002 | C21: 93.300003 | D21: 92.309998 | E21: 92.440002 | F21: 78.988152 | G21: 12385400 | H21: 20150130 16:00:00 | I21: 0.16372967 | J21: 0.1702541 | K21: 0.16372967 | L21: 0.1702541
A22: 2015-02-02 | B22: 92.050003 | C22: 92.660004 | D22: 91.430000 | E22: 92.510002 | F22: 79.047966 | G22: 6751400 | H22: 20150202 16:00:00 | I22: 0.17103195 | J22: 0.18987499 | K22: 0.17103195 | L22: 0.17466721
A23: 2015-02-03 | B23: 92.639999 | C23: 93.980003 | D23: 92.449997 | E23: 93.919998 | F23: 80.252800 | G23: 7373000 | H23: 20150203 16:00:00 | I23: 0.17380999 | J23: 0.17522282 | K23: 0.16468214 | L23: 0.165206
A24: 2015-02-04 | B24: 93.500000 | C24: 94.430000 | D24: 93.500000 | E24: 94.050003 | F24: 80.363869 | G24: 6464800 | H24: 20150204 16:00:00 | I24: 0.16361855 | J24: 0.16557112 | K24: 0.16014204 | L24: 0.16269783
A25: 2015-02-05 | B25: 94.099998 | C25: 94.830002 | D25: 94.000000 | E25: 94.339996 | F25: 80.611656 | G25: 5564100 | H25: 20150205 16:00:00 | I25: 0.16314232 | J25: 0.16438053 | K25: 0.15831647 | L25: 0.15887207
A26: 2015-02-06 | B26: 94.150002 | C26: 94.480003 | D26: 93.650002 | E26: 93.989998 | F26: 80.312592 | G26: 4662700 | H26: 20150206 16:00:00 | I26: 0.15822122 | J26: 0.15887207 | K26: 0.15530031 | L26: 0.15741162
A27: 2015-02-09 | B27: 93.300003 | C27: 93.449997 | D27: 92.540001 | E27: 92.720001 | F27: 79.227409 | G27: 8203000 | H27: 20150209 16:00:00 | I27: 0.15845934 | J27: 0.1683809 | K27: 0.15845934 | L27: 0.16157074
A28: 2015-02-10 | B28: 93.330002 | C28: 94.230003 | D28: 92.970001 | E28: 94.019997 | F28: 80.338234 | G28: 4697600 | H28: 20150210 16:00:00 | I28: 0.16253909 | J28: 0.16253909 | K28: 0.15841171 | L28: 0.16082464
A29: 2015-02-11 | B29: 94.160004 | C29: 94.330002 | D29: 93.300003 | E29: 94.209999 | F29: 80.500580 | G29: 5153900 | H29: 20150211 16:00:00 | I29: 0.161285 | J29: 0.16890476 | K29: 0.16123738 | L29: 0.16399954
A30: 2015-02-12 | B30: 94.050003 | C30: 95.599998 | D30: 93.769997 | E30: 95.089996 | F30: 81.252533 | G30: 7910100 | H30: 20150212 16:00:00 | I30: 0.16368205 | J30: 0.16733319 | K30: 0.15517331 | L30: 0.16149137
A31: 2015-02-13 | B31: 95.400002 | C31: 95.849998 | D31: 94.930000 | E31: 95.650002 | F31: 81.731041 | G31: 6762200 | H31: 20150213 16:00:00 | I31: 0.16198348 | J31: 0.16555524 | K31: 0.15784023 | L31: 0.15939593
A32: 2015-02-17 | B32: 95.120003 | C32: 95.389999 | D32: 94.089996 | E32: 94.349998 | F32: 80.620209 | G32: 5972000 | H32: 20150217 16:00:00 | I32: 0.16758718 | J32: 0.16895239 | K32: 0.16239622 | L32: 0.16507901
A33: 2015-02-18 | B33: 94.230003 | C33: 94.790001 | D33: 94.000000 | E33: 94.580002 | F33: 80.816757 | G33: 5617500 | H33: 20150218 16:00:00 | I33: 0.16687283 | J33: 0.17401636 | K33: 0.1622216 | L33: 0.16330106
A34: 2015-02-19 | B34: 94.500000 | C34: 94.550003 | D34: 93.739998 | E34: 94.190002 | F34: 80.483513 | G34: 6312200 | H34: 20150219 16:00:00 | I34: 0.16244384 | J34: 0.16580923 | K34: 0.15517331 | L34: 0.15737987
A35: 2015-02-20 | B35: 94.160004 | C35: 94.489998 | D35: 93.559998 | E35: 94.190002 | F35: 80.483513 | G35: 8155000 | H35: 20150220 16:00:00 | I35: 0.15715763 | J35: 0.16474564 | K35: 0.15715763 | L35: 0.16007854
A36: 2015-02-23 | B36: 94.120003 | C36: 94.410004 | D36: 93.949997 | E36: 94.309998 | F36: 80.586014 | G36: 5682000 | H36: 20150223 16:00:00 | I36: 0.15999916 | J36: 0.16444403 | K36: 0.1539351 | L36: 0.15544318
A37: 2015-02-24 | B37: 94.080002 | C37: 95.330002 | D37: 93.690002 | E37: 94.980003 | F37: 81.158531 | G37: 5643600 | H37: 20150224 16:00:00 | I37: 0.15577655 | J37: 0.2587386 | K37: 0.15433197 | L37: 0.15491932
A38: 2015-02-25 | B38: 94.910004 | C38: 99.309998 | D38: 94.860001 | E38: 98.660004 | F38: 84.303047 | G38: 16751600 | H38: 20150225 16:00:00 | I38: 0.1548717 | J38: 0.18582699 | K38: 0.15177617 | L38: 0.18266796
A39: 2015-02-26 | B39: 97.430000 | C39: 99.879997 | D39: 97.000000 | E39: 99.510002 | F39: 85.768272 | G39: 16098800 | H39: 20150226 16:00:00 | I39: 0.18123926 | J39: 0.18857328 | K39: 0.17882633 | L39: 0.18489039
A40: 2015-02-27 | B40: 99.169998 | C40: 99.300003 | D40: 98.489998 | E40: 98.900002 | F40: 85.242516 | G40: 7552500 | H40: 20150227 16:00:00 | I40: 0.18431891 | J40: 0.18993849 | K40: 0.17987405 | L40: 0.17987405
A41: 2015-03-02 | B41: 98.900002 | C41: 101.089996 | D41: 98.309998 | E41: 100.000000 | F41: 86.190605 | G41: 12363300 | H41: 20150302 16:00:00 | I41: 0.17855646 | J41: 0.20597174 | K41: 0.17855646 | L41: 0.20389218
A42: 2015-03-03 | B42: 99.970001 | C42: 100.440002 | D42: 99.550003 | E42: 99.739998 | F42: 85.966515 | G42: 8149700 | H42: 20150303 16:00:00 | I42: 0.20374931 | J42: 0.2071147 | K42: 0.19747888 | L42: 0.19747888
A43: 2015-03-04 | B43: 99.809998 | C43: 100.480003 | D43: 99.180000 | E43: 100.250000 | F43: 86.406067 | G43: 9179400 | H43: 20150304 16:00:00 | I43: 0.19736776 | J43: 0.20663847 | K43: 0.1969074 | L43: 0.20046329
A44: 2015-03-05 | B44: 99.010002 | C44: 99.919998 | D44: 98.459999 | E44: 99.110001 | F44: 85.423492 | G44: 9438800 | H44: 20150305 16:00:00 | I44: 0.19973306 | J44: 0.19984418 | K44: 0.18057253 | L44: 0.18144562
A45: 2015-03-06 | B45: 98.269997 | C45: 98.989998 | D45: 96.959999 | E45: 97.129997 | F45: 83.716949 | G45: 9677900 | H45: 20150306 16:00:00 | I45: 0.18130275 | J45: 0.18496977 | K45: 0.18023916 | L45: 0.18398555
A46: 2015-03-09 | B46: 96.809998 | C46: 98.250000 | D46: 96.809998 | E46: 97.709999 | F46: 84.216835 | G46: 8460300 | H46: 20150309 16:00:00 | I46: 0.18328707 | J46: 0.18533488 | K46: 0.18030266 | L46: 0.18177899
A47: 2015-03-10 | B47: 96.910004 | C47: 97.120003 | D47: 96.099998 | E47: 96.290001 | F47: 82.992928 | G47: 7838900 | H47: 20150310 16:00:00 | I47: 0.18144562 | J47: 0.18839866 | K47: 0.18141388 | L47: 0.18403317
A48: 2015-03-11 | B48: 96.300003 | C48: 96.769997 | D48: 94.940002 | E48: 94.959999 | F48: 81.846596 | G48: 9391100 | H48: 20150311 16:00:00 | I48: 0.18377918 | J48: 0.19644703 | K48: 0.18189011 | L48: 0.19612954
A49: 2015-03-12 | B49: 95.419998 | C49: 96.440002 | D49: 95.279999 | E49: 96.250000 | F49: 82.958458 | G49: 8765100 | H49: 20150312 16:00:00 | I49: 0.19589143 | J49: 0.2008284 | K49: 0.19570093 | L49: 0.19617717
A50: 2015-03-13 | B50: 96.239998 | C50: 97.050003 | D50: 95.750000 | E50: 96.349998 | F50: 83.044640 | G50: 5152800 | H50: 20150313 16:00:00 | I50: 0.1959708 | J50: 0.19998705 | K50: 0.19393886 | L50: 0.1982726
A51: 2015-03-16 | B51: 96.930000 | C51: 97.470001 | D51: 96.739998 | E51: 97.150002 | F51: 83.734169 | G51: 4772200 | H51: 20150316 16:00:00 | I51: 0.19743125 | J51: 0.20773381 | K51: 0.19743125 | L51: 0.19792336
A52: 2015-03-17 | B52: 96.900002 | C52: 97.150002 | D52: 95.989998 | E52: 96.169998 | F52: 82.889496 | G52: 4530700 | H52: 20150317 16:00:00 | I52: 0.19784399 | J52: 0.20033629 | K52: 0.19282765 | L52: 0.19574856
A53: 2015-03-18 | B53: 96.010002 | C53: 97.239998 | D53: 95.330002 | E53: 97.000000 | F53: 83.604881 | G53: 5831000 | H53: 20150318 16:00:00 | I53: 0.19568506 | J53: 0.19838372 | K53: 0.1895575 | L53: 0.18965275
A54: 2015-03-19 | B54: 96.860001 | C54: 97.010002 | D54: 95.980003 | E54: 95.980003 | F54: 82.725739 | G54: 3615400 | H54: 20150319 16:00:00 | I54: 0.18968449 | J54: 0.19316101 | K54: 0.1821441 | L54: 0.1831442
A55: 2015-03-20 | B55: 96.320000 | C55: 97.720001 | D55: 96.120003 | E55: 97.050003 | F55: 83.647987 | G55: 10014000 | H55: 20150320 16:00:00 | I55: 0.18422366 | J55: 0.19052584 | K55: 0.18277908 | L55: 0.18355693
A56: 2015-03-23 | B56: 96.800003 | C56: 99.120003 | D56: 96.800003 | E56: 98.620003 | F56: 85.001183 | G56: 9232000 | H56: 20150323 16:00:00 | I56: 0.18933526 | J56: 0.27704191 | K56: 0.18933526 | L56: 0.19589143
A57: 2015-03-24 | B57: 98.459999 | C57: 99.839996 | D57: 98.070000 | E57: 99.360001 | F57: 85.639008 | G57: 7549900 | H57: 20150324 16:00:00 | I57: 0.19705027 | J57: 0.20382868 | K57: 0.19352613 | L57: 0.19460559
A58: 2015-03-25 | B58: 99.029999 | C58: 99.610001 | D58: 98.110001 | E58: 98.139999 | F58: 84.587448 | G58: 6030500 | H58: 20150325 16:00:00 | I58: 0.19552631 | J58: 0.20965463 | K58: 0.19552631 | L58: 0.2087339
A59: 2015-03-26 | B59: 97.599998 | C59: 97.970001 | D59: 96.199997 | E59: 97.639999 | F59: 84.156509 | G59: 10445800 | H59: 20150326 16:00:00 | I59: 0.20959113 | J59: 0.21524245 | K59: 0.20824179 | L59: 0.21021023
A60: 2015-03-27 | B60: 97.360001 | C60: 97.849998 | D60: 96.769997 | E60: 96.959999 | F60: 83.570412 | G60: 4642400 | H60: 20150327 16:00:00 | I60: 0.20998799 | J60: 0.21101983 | K60: 0.20511452 | L60: 0.2065591
A61: 2015-03-30 | B61: 97.430000 | C61: 98.320000 | D61: 97.370003 | E61: 97.879997 | F61: 84.363373 | G61: 4074500 | H61: 20150330 16:00:00 | I61: 0.20435254 | J61: 0.20963875 | K61: 0.19882821 | L61: 0.19916158
A62: 2015-03-31 | B62: 97.820000 | C62: 98.430000 | D62: 97.440002 | E62: 97.440002 | F62: 83.984138 | G62: 5617000 | H62: 20150331 16:00:00 | I62: 0.19897108 | J62: 0.2000188 | K62: 0.19370074 | L62: 0.19565331
A63: 2015-04-01 | B63: 96.809998 | C63: 97.019997 | D63: 96.000000 | E63: 96.290001 | F63: 82.992928 | G63: 7484800 | H63: 20150401 16:00:00 | I63: 0.19551044 | J63: 0.22370356 | K63: 0.19173231 | L63: 0.19304989
A64: 2015-04-02 | B64: 95.959999 | C64: 96.239998 | D64: 94.709999 | E64: 95.830002 | F64: 82.596451 | G64: 6614300 | H64: 20150402 16:00:00 | I64: 0.1928594 | J64: 0.1985266 | K64: 0.19193867 | L64: 0.193415
A65: 2015-04-06 | B65: 95.750000 | C65: 96.820000 | D65: 95.449997 | E65: 96.279999 | F65: 82.984322 | G65: 4501300 | H65: 20150406 16:00:00 | I65: 0.2022571 | J65: 0.2038763 | K65: 0.19303402 | L65: 0.19333563
A66: 2015-04-07 | B66: 96.239998 | C66: 96.790001 | D66: 96.099998 | E66: 96.349998 | F66: 83.044640 | G66: 4443700 | H66: 20150407 16:00:00 | I66: 0.19322451 | J66: 0.19703439 | K66: 0.19141482 | L66: 0.19379599
A67: 2015-04-08 | B67: 96.730003 | C67: 97.500000 | D67: 95.980003 | E67: 96.849998 | F67: 83.475594 | G67: 4445200 | H67: 20150408 16:00:00 | I67: 0.19368487 | J67: 0.19627242 | K67: 0.19084333 | L67: 0.19097033
A68: 2015-04-09 | B68: 96.849998 | C68: 97.430000 | D68: 96.209999 | E68: 96.550003 | F68: 83.217033 | G68: 4790000 | H68: 20150409 16:00:00 | I68: 0.19082746 | J68: 0.19549456 | K68: 0.18820817 | L68: 0.18866853
A69: 2015-04-10 | B69: 96.900002 | C69: 97.949997 | D69: 96.559998 | E69: 97.800003 | F69: 84.294411 | G69: 5937800 | H69: 20150410 16:00:00 | I69: 0.18827166 | J69: 0.19125607 | K69: 0.18627148 | L69: 0.18814467
A70: 2015-04-13 | B70: 97.410004 | C70: 97.750000 | D70: 97.070000 | E70: 97.440002 | F70: 83.984138 | G70: 5197900 | H70: 20150413 16:00:00 | I70: 0.18560475 | J70: 0.1943516 | K70: 0.18560475 | L70: 0.18714457
A71: 2015-04-14 | B71: 97.160004 | C71: 97.739998 | D71: 96.970001 | E71: 97.580002 | F71: 84.104797 | G71: 4961100 | H71: 20150414 16:00:00 | I71: 0.18465228 | J71: 0.19358962 | K71: 0.18465228 | L71: 0.18508089
A72: 2015-04-15 | B72: 97.000000 | C72: 97.550003 | D72: 96.279999 | E72: 96.440002 | F72: 83.122215 | G72: 6604400 | H72: 20150415 16:00:00 | I72: 0.18474752 | J72: 0.1878113 | K72: 0.1830807 | L72: 0.18398555
A73: 2015-04-16 | B73: 96.370003 | C73: 97.440002 | D73: 95.510002 | E73: 95.629997 | F73: 82.424072 | G73: 5071700 | H73: 20150416 16:00:00 | I73: 0.18362043 | J73: 0.18911301 | K73: 0.18281083 | L73: 0.18323944
A74: 2015-04-17 | B74: 95.129997 | C74: 95.349998 | D74: 94.459999 | E74: 94.879997 | F74: 81.777641 | G74: 6933600 | H74: 20150417 16:00:00 | I74: 0.18309657 | J74: 0.18757318 | K74: 0.17998517 | L74: 0.18300133
A75: 2015-04-20 | B75: 95.000000 | C75: 96.260002 | D75: 95.000000 | E75: 96.180000 | F75: 82.898125 | G75: 4382400 | H75: 20150420 16:00:00 | I75: 0.18250922 | J75: 0.18887489 | K75: 0.18028679 | L75: 0.18658897
A76: 2015-04-21 | B76: 96.190002 | C76: 96.550003 | D76: 94.540001 | E76: 94.870003 | F76: 81.769028 | G76: 5981700 | H76: 20150421 16:00:00 | I76: 0.18623973 | J76: 0.1927324 | K76: 0.18358868 | L76: 0.18792242
A77: 2015-04-22 | B77: 97.000000 | C77: 99.349998 | D77: 96.239998 | E77: 97.839996 | F77: 84.328888 | G77: 19254300 | H77: 20150422 16:00:00 | I77: 0.18847803 | J77: 0.29571033 | K77: 0.18235047 | L77: 0.20981337
A78: 2015-04-23 | B78: 97.440002 | C78: 97.519997 | D78: 96.559998 | E78: 97.000000 | F78: 83.604881 | G78: 6336500 | H78: 20150423 16:00:00 | I78: 0.20906727 | J78: 0.26861255 | K78: 0.20765444 | L78: 0.21298827
A79: 2015-04-24 | B79: 96.989998 | C79: 99.080002 | D79: 96.839996 | E79: 98.739998 | F79: 85.104614 | G79: 7741300 | H79: 20150424 16:00:00 | I79: 0.21192468 | J79: 0.21721089 | K79: 0.20965463 | L79: 0.2162743
A80: 2015-04-27 | B80: 98.739998 | C80: 98.940002 | D80: 96.260002 | E80: 96.440002 | F80: 83.122215 | G80: 7282700 | H80: 20150427 16:00:00 | I80: 0.21148019 | J80: 0.23410137 | K80: 0.21148019 | L80: 0.23246629
A81: 2015-04-28 | B81: 96.269997 | C81: 96.889999 | D81: 95.779999 | E81: 96.830002 | F81: 83.458351 | G81: 4357400 | H81: 20150428 16:00:00 | I81: 0.23130745 | J81: 0.24618187 | K81: 0.2275452 | L81: 0.2299105
A82: 2015-04-29 | B82: 96.580002 | C82: 97.669998 | D82: 96.070000 | E82: 97.019997 | F82: 83.622131 | G82: 5697200 | H82: 20150429 16:00:00 | I82: 0.22935489 | J82: 0.25667492 | K82: 0.22935489 | L82: 0.2565638
A83: 2015-04-30 | B83: 96.650002 | C83: 97.370003 | D83: 96.410004 | E83: 96.550003 | F83: 83.217033 | G83: 8300300 | H83: 20150430 16:00:00 | I83: 0.25537321 | J83: 0.26315172 | K83: 0.24949964 | L83: 0.25078548
A84: 2015-05-01 | B84: 96.730003 | C84: 97.970001 | D84: 96.730003 | E84: 97.800003 | F84: 84.294411 | G84: 6280300 | H84: 20150501 16:00:00 | I84: 0.25022987 | J84: 0.26539002 | K84: 0.22922789 | L84: 0.2307836
A85: 2015-05-04 | B85: 96.570000 | C85: 98.629997 | D85: 96.050003 | E85: 96.129997 | F85: 82.855042 | G85: 8426300 | H85: 20150504 16:00:00 | I85: 0.22813255 | J85: 0.22813255 | K85: 0.17679439 | L85: 0.17773099
A86: 2015-05-05 | B86: 96.389999 | C86: 96.470001 | D86: 95.570000 | E86: 96.129997 | F86: 82.855042 | G86: 7637000 | H86: 20150505 16:00:00 | I86: 0.17781036 | J86: 0.18055665 | K86: 0.1725559 | L86: 0.17887395
A87: 2015-05-06 | B87: 96.099998 | C87: 96.660004 | D87: 95.879997 | E87: 96.389999 | F87: 83.079140 | G87: 6614500 | H87: 20150506 16:00:00 | I87: 0.17879458 | J87: 0.18489039 | K87: 0.17725475 | L87: 0.17992167
A88: 2015-05-07 | B88: 96.269997 | C88: 97.330002 | D88: 96.120003 | E88: 96.779999 | F88: 83.415276 | G88: 5018900 | H88: 20150507 16:00:00 | I88: 0.17993755 | J88: 0.18498564 | K88: 0.17882633 | L88: 0.18284258
A89: 2015-05-08 | B89: 98.190002 | C89: 99.150002 | D89: 97.790001 | E89: 98.230003 | F89: 84.665039 | G89: 7543100 | H89: 20150508 16:00:00 | I89: 0.18304895 | J89: 0.18541425 | K89: 0.17131769 | L89: 0.17355599
A90: 2015-05-11 | B90: 98.070000 | C90: 98.389999 | D90: 97.150002 | E90: 97.510002 | F90: 84.044464 | G90: 4123700 | H90: 20150511 16:00:00 | I90: 0.17576255 | J90: 0.18944638 | K90: 0.17576255 | L90: 0.17800086
A91: 2015-05-12 | B91: 97.389999 | C91: 98.349998 | D91: 96.919998 | E91: 97.949997 | F91: 84.423714 | G91: 4848100 | H91: 20150512 16:00:00 | I91: 0.17846122 | J91: 0.18287433 | K91: 0.17358774 | L91: 0.17560381
A92: 2015-05-13 | B92: 98.070000 | C92: 98.489998 | D92: 97.279999 | E92: 97.349998 | F92: 83.906555 | G92: 6526900 | H92: 20150513 16:00:00 | I92: 0.17603242 | J92: 0.17995342 | K92: 0.1751117 | L92: 0.17588955
A93: 2015-05-14 | B93: 97.660004 | C93: 97.870003 | D93: 97.279999 | E93: 97.709999 | F93: 84.216835 | G93: 4744000 | H93: 20150514 16:00:00 | I93: 0.1758578 | J93: 0.1910497 | K93: 0.16655534 | L93: 0.16731731
A94: 2015-05-15 | B94: 97.739998 | C94: 99.040001 | D94: 97.540001 | E94: 98.040001 | F94: 84.501251 | G94: 7607200 | H94: 20150515 16:00:00 | I94: 0.16760305 | J94: 0.24414993 | K94: 0.16299945 | L94: 0.16963499
A95: 2015-05-18 | B95: 97.970001 | C95: 98.250000 | D95: 97.620003 | E95: 98.019997 | F95: 84.484009 | G95: 4100800 | H95: 20150518 16:00:00 | I95: 0.17138119 | J95: 0.20373343 | K95: 0.1676983 | L95: 0.16892064
A96: 2015-05-19 | B96: 98.089996 | C96: 101.080002 | D96: 97.650002 | E96: 100.680000 | F96: 86.776703 | G96: 10809200 | H96: 20150519 16:00:00 | I96: 0.16877777 | J96: 0.19838372 | K96: 0.16385667 | L96: 0.1969074
A97: 2015-05-20 | B97: 100.879997 | C97: 100.980003 | D97: 99.419998 | E97: 100.110001 | F97: 86.285416 | G97: 6185100 | H97: 20150520 16:00:00 | I97: 0.1967169 | J97: 0.20211423 | K97: 0.18466815 | L97: 0.18489039
A98: 2015-05-21 | B98: 99.889999 | C98: 99.959999 | D98: 99.059998 | E98: 99.279999 | F98: 85.570030 | G98: 4729500 | H98: 20150521 16:00:00 | I98: 0.18516026 | J98: 0.1871922 | K98: 0.17333375 | L98: 0.17387348
A99: 2015-05-22 | B99: 99.150002 | C99: 99.480003 | D99: 98.839996 | E99: 98.989998 | F99: 85.320076 | G99: 4559500 | H99: 20150522 16:00:00 | I99: 0.17395286 | J99: 0.17661977 | K99: 0.1669522 | L99: 0.16799992
A100: 2015-05-26 | B100: 98.849998 | C100: 99.199997 | D100: 98.040001 | E100: 98.459999 | F100: 84.863266 | G100: 7123100 | H100: 20150526 16:00:00 | I100: 0.16858727 | J100: 0.17768337 | K100: 0.16852378 | L100: 0.17700076
A101: 2015-05-27 | B101: 98.970001 | C101: 99.220001 | D101: 98.199997 | E101: 98.660004 | F101: 85.035652 | G101: 8129500 | H101: 20150527 16:00:00 | I101: 0.17682614 | J101: 0.19287527 | K101: 0.16861902 | L101: 0.17555618
A102: 2015-05-28 | B102: 98.000000 | C102: 98.209999 | D102: 96.199997 | E102: 96.480003 | F102: 83.879356 | G102: 10204000 | H102: 20150528 16:00:00 | I102: 0.17727063 | J102: 0.1846364 | K102: 0.173302 | L102: 0.17931844
A103: 2015-05-29 | B103: 97.589996 | C103: 97.769997 | D103: 95.839996 | E103: 95.930000 | F103: 83.401184 | G103: 6439100 | H103: 20150529 16:00:00 | I103: 0.1791597 | J103: 0.21921108 | K103: 0.17384174 | L103: 0.17474658
A104: 2015-06-01 | B104: 95.839996 | C104: 96.910004 | D104: 95.839996 | E104: 96.220001 | F104: 83.653313 | G104: 4919200 | H104: 20150601 16:00:00 | I104: 0.17484183 | J104: 0.20563837 | K104: 0.17484183 | L104: 0.1789692
A105: 2015-06-02 | B105: 96.300003 | C105: 96.970001 | D105: 95.809998 | E105: 96.290001 | F105: 83.714157 | G105: 4430300 | H105: 20150602 16:00:00 | I105: 0.17912795 | J105: 0.18063603 | K105: 0.16949212 | L105: 0.16958737
A106: 2015-06-03 | B106: 96.379997 | C106: 97.070000 | D106: 95.970001 | E106: 96.519997 | F106: 83.914116 | G106: 4165700 | H106: 20150603 16:00:00 | I106: 0.16968261 | J106: 0.17036522 | K106: 0.16466627 | L106: 0.16558699
A107: 2015-06-04 | B107: 96.300003 | C107: 96.970001 | D107: 96.010002 | E107: 96.309998 | F107: 83.731552 | G107: 4702800 | H107: 20150604 16:00:00 | I107: 0.16582511 | J107: 0.16839678 | K107: 0.1645234 | L107: 0.16728556
A108: 2015-06-05 | B108: 95.930000 | C108: 96.089996 | D108: 95.470001 | E108: 95.540001 | F108: 83.062141 | G108: 3959300 | H108: 20150605 16:00:00 | I108: 0.16741256 | J108: 0.17787386 | K108: 0.16104688 | L108: 0.16111038
A109: 2015-06-08 | B109: 96.000000 | C109: 96.040001 | D109: 95.250000 | E109: 95.320000 | F109: 82.870842 | G109: 4594600 | H109: 20150608 16:00:00 | I109: 0.16214222 | J109: 0.16880952 | K109: 0.16214222 | L109: 0.16442815
A110: 2015-06-09 | B110: 95.519997 | C110: 95.559998 | D110: 94.489998 | E110: 94.730003 | F110: 82.357910 | G110: 7770900 | H110: 20150609 16:00:00 | I110: 0.1645234 | J110: 0.17777861 | K110: 0.16352331 | L110: 0.16423766
A111: 2015-06-10 | B111: 95.019997 | C111: 95.629997 | D111: 94.809998 | E111: 95.300003 | F111: 82.853470 | G111: 4828600 | H111: 20150610 16:00:00 | I111: 0.16428528 | J111: 0.22311621 | K111: 0.15590354 | L111: 0.15657027
A112: 2015-06-11 | B112: 95.500000 | C112: 96.330002 | D112: 95.500000 | E112: 95.589996 | F112: 83.105591 | G112: 4203900 | H112: 20150611 16:00:00 | I112: 0.15663377 | J112: 0.16130087 | K112: 0.15253815 | L112: 0.15356999
A113: 2015-06-12 | B113: 95.419998 | C113: 95.550003 | D113: 95.000000 | E113: 95.059998 | F113: 82.644806 | G113: 3702400 | H113: 20150612 16:00:00 | I113: 0.15376048 | J113: 0.1910497 | K113: 0.14715669 | L113: 0.14872826
A114: 2015-06-15 | B114: 94.739998 | C114: 95.000000 | D114: 94.019997 | E114: 94.300003 | F114: 81.984070 | G114: 5861800 | H114: 20150615 16:00:00 | I114: 0.15026809 | J114: 0.16304707 | K114: 0.15026809 | L114: 0.16144375
A115: 2015-06-16 | B115: 94.250000 | C115: 94.669998 | D115: 94.099998 | E115: 94.629997 | F115: 82.270950 | G115: 3094800 | H115: 20150616 16:00:00 | I115: 0.16163424 | J115: 0.18871615 | K115: 0.15747512 | L115: 0.16130087
A116: 2015-06-17 | B116: 94.540001 | C116: 95.519997 | D116: 94.540001 | E116: 95.220001 | F116: 82.783913 | G116: 3941000 | H116: 20150617 16:00:00 | I116: 0.16152312 | J116: 0.1708097 | K116: 0.15626866 | L116: 0.15728462
A117: 2015-06-18 | B117: 95.690002 | C117: 96.629997 | D117: 95.279999 | E117: 96.169998 | F117: 83.609840 | G117: 5101000 | H117: 20150618 16:00:00 | I117: 0.1587292 | J117: 0.1638408 | K117: 0.15360174 | L117: 0.15749099
A118: 2015-06-19 | B118: 96.389999 | C118: 97.139999 | D118: 95.980003 | E118: 96.080002 | F118: 83.531609 | G118: 8279300 | H118: 20150619 16:00:00 | I118: 0.16395192 | J118: 0.16395192 | K118: 0.1539351 | L118: 0.15449071
A119: 2015-06-22 | B119: 96.309998 | C119: 97.029999 | D119: 96.139999 | E119: 96.870003 | F119: 84.218422 | G119: 3893300 | H119: 20150622 16:00:00 | I119: 0.17119069 | J119: 0.17119069 | K119: 0.15803073 | L119: 0.15803073
A120: 2015-06-23 | B120: 97.589996 | C120: 97.959999 | D120: 97.120003 | E120: 97.180000 | F120: 84.487923 | G120: 4541700 | H120: 20150623 16:00:00 | I120: 0.16276133 | J120: 0.17028585 | K120: 0.16276133 | L120: 0.16606323
A121: 2015-06-24 | B121: 96.750000 | C121: 97.449997 | D121: 96.639999 | E121: 96.639999 | F121: 84.018463 | G121: 3927100 | H121: 20150624 16:00:00 | I121: 0.1702541 | J121: 0.17125419 | K121: 0.16653946 | L121: 0.16834916
A122: 2015-06-25 | B122: 96.699997 | C122: 96.910004 | D122: 95.779999 | E122: 95.790001 | F122: 83.279480 | G122: 4322300 | H122: 20150625 16:00:00 | I122: 0.17196854 | J122: 0.17300039 | K122: 0.16903176 | L122: 0.16988898
A123: 2015-06-26 | B123: 96.129997 | C123: 97.349998 | D123: 95.930000 | E123: 97.290001 | F123: 84.583565 | G123: 6039500 | H123: 20150626 16:00:00 | I123: 0.17287339 | J123: 0.17287339 | K123: 0.16596798 | L123: 0.16771418
A124: 2015-06-29 | B124: 96.620003 | C124: 97.230003 | D124: 95.419998 | E124: 95.440002 | F124: 82.975174 | G124: 8412800 | H124: 20150629 16:00:00 | I124: 0.17703251 | J124: 0.18516026 | K124: 0.17454021 | L124: 0.18362043
A125: 2015-06-30 | B125: 95.930000 | C125: 96.300003 | D125: 94.540001 | E125: 95.070000 | F125: 82.653503 | G125: 6656000 | H125: 20150630 16:00:00 | I125: 0.18792242 | J125: 0.19970131 | K125: 0.18696995 | L125: 0.19892346
A126: 2015-07-01 | B126: 95.099998 | C126: 95.820000 | D126: 94.730003 | E126: 95.760002 | F126: 83.253387 | G126: 4446200 | H126: 20150701 16:00:00 | I126: 0.19982831 | J126: 0.19982831 | K126: 0.19054172 | L126: 0.19089096
A127: 2015-07-02 | B127: 96.129997 | C127: 96.599998 | D127: 95.580002 | E127: 96.169998 | F127: 83.609840 | G127: 3250900 | H127: 20150702 16:00:00 | I127: 0.19149419 | J127: 0.19263715 | K127: 0.18903364 | L127: 0.19122432
A128: 2015-07-06 | B128: 95.889999 | C128: 96.279999 | D128: 95.250000 | E128: 95.650002 | F128: 83.157745 | G128: 3852500 | H128: 20150706 16:00:00 | I128: 0.19760587 | J128: 0.19862184 | K128: 0.19530407 | L128: 0.19593905
A129: 2015-07-07 | B129: 95.930000 | C129: 96.779999 | D129: 95.239998 | E129: 96.680000 | F129: 84.053238 | G129: 4794400 | H129: 20150707 16:00:00 | I129: 0.19565331 | J129: 0.19922507 | K129: 0.18728744 | L129: 0.18958925
A130: 2015-07-08 | B130: 95.650002 | C130: 96.589996 | D130: 95.650002 | E130: 95.839996 | F130: 83.322929 | G130: 4914300 | H130: 20150708 16:00:00 | I130: 0.18919238 | J130: 0.20044741 | K130: 0.18919238 | L130: 0.19962194
A131: 2015-07-09 | B131: 96.639999 | C131: 97.269997 | D131: 96.440002 | E131: 96.489998 | F131: 83.888054 | G131: 5482500 | H131: 20150709 16:00:00 | I131: 0.19922507 | J131: 0.19993943 | K131: 0.19468496 | L131: 0.19830435
A132: 2015-07-10 | B132: 97.250000 | C132: 97.779999 | D132: 96.949997 | E132: 97.650002 | F132: 84.896530 | G132: 5179200 | H132: 20150710 16:00:00 | I132: 0.19803449 | J132: 0.19803449 | K132: 0.18924001 | L132: 0.18924001
A133: 2015-07-13 | B133: 98.000000 | C133: 98.510002 | D133: 97.699997 | E133: 98.430000 | F133: 85.574669 | G133: 4578700 | H133: 20150713 16:00:00 | I133: 0.1878113 | J133: 0.19044647 | K133: 0.17877871 | L133: 0.17877871
A134: 2015-07-14 | B134: 98.120003 | C134: 99.050003 | D134: 97.959999 | E134: 98.779999 | F134: 85.878952 | G134: 5746100 | H134: 20150714 16:00:00 | I134: 0.17860409 | J134: 0.18017566 | K134: 0.17608004 | L134: 0.18014392
A135: 2015-07-15 | B135: 98.150002 | C135: 99.629997 | D135: 97.849998 | E135: 99.070000 | F135: 86.131088 | G135: 7572500 | H135: 20150715 16:00:00 | I135: 0.17987405 | J135: 0.19147831 | K135: 0.17987405 | L135: 0.19028773
A136: 2015-07-16 | B136: 99.110001 | C136: 99.110001 | D136: 97.209999 | E136: 97.860001 | F136: 85.079109 | G136: 7696200 | H136: 20150716 16:00:00 | I136: 0.18981149 | J136: 0.19939969 | K136: 0.18944638 | L136: 0.19538344
A137: 2015-07-17 | B137: 97.699997 | C137: 98.220001 | D137: 97.000000 | E137: 97.500000 | F137: 84.766129 | G137: 6429800 | H137: 20150717 16:00:00 | I137: 0.19478021 | J137: 0.20073315 | K137: 0.19343088 | L137: 0.19560569
A138: 2015-07-20 | B138: 97.779999 | C138: 98.209999 | D138: 97.400002 | E138: 97.489998 | F138: 84.757446 | G138: 4947000 | H138: 20150720 16:00:00 | I138: 0.19149419 | J138: 0.19862184 | K138: 0.19149419 | L138: 0.1967804
A139: 2015-07-21 | B139: 97.599998 | C139: 97.720001 | D139: 96.959999 | E139: 97.320000 | F139: 84.609657 | G139: 4206700 | H139: 20150721 16:00:00 | I139: 0.19600255 | J139: 0.201511 | K139: 0.19600255 | L139: 0.19762175
A140: 2015-07-22 | B140: 97.709999 | C140: 98.250000 | D140: 97.430000 | E140: 97.580002 | F140: 84.835701 | G140: 5392600 | H140: 20150722 16:00:00 | I140: 0.19687565 | J140: 0.20201899 | K140: 0.19263715 | L140: 0.19336738
A141: 2015-07-23 | B141: 98.900002 | C141: 99.000000 | D141: 96.150002 | E141: 97.089996 | F141: 84.409676 | G141: 10380700 | H141: 20150723 16:00:00 | I141: 0.1927959 | J141: 0.1927959 | K141: 0.15512569 | L141: 0.16011029
A142: 2015-07-24 | B142: 97.410004 | C142: 97.410004 | D142: 96.089996 | E142: 96.099998 | F142: 83.548981 | G142: 5554600 | H142: 20150724 16:00:00 | I142: 0.16015791 | J142: 0.16425353 | K142: 0.15830059 | L142: 0.16342806
A143: 2015-07-27 | B143: 96.000000 | C143: 96.750000 | D143: 95.699997 | E143: 96.040001 | F143: 83.496811 | G143: 5818600 | H143: 20150727 16:00:00 | I143: 0.16171361 | J143: 0.17073033 | K143: 0.16171361 | L143: 0.16372967
A144: 2015-07-28 | B144: 96.480003 | C144: 97.419998 | D144: 96.320000 | E144: 97.330002 | F144: 84.618340 | G144: 4863000 | H144: 20150728 16:00:00 | I144: 0.16379317 | J144: 0.16379317 | K144: 0.149268 | L144: 0.149268
A145: 2015-07-29 | B145: 97.480003 | C145: 98.389999 | D145: 97.000000 | E145: 98.209999 | F145: 85.383415 | G145: 6006500 | H145: 20150729 16:00:00 | I145: 0.14944262 | J145: 0.1848269 | K145: 0.14280707 | L145: 0.14398179
A146: 2015-07-30 | B146: 97.589996 | C146: 99.339996 | D146: 97.589996 | E146: 99.169998 | F146: 86.218025 | G146: 5372500 | H146: 20150730 16:00:00 | I146: 0.14433103 | J146: 0.18144562 | K146: 0.14147361 | L146: 0.1419181
A147: 2015-07-31 | B147: 99.650002 | C147: 101.099998 | D147: 99.300003 | E147: 99.860001 | F147: 86.817924 | G147: 7647000 | H147: 20150731 16:00:00 | I147: 0.14229909 | J147: 0.15463358 | K147: 0.14153711 | L147: 0.15074433
A148: 2015-08-03 | B148: 100.000000 | C148: 100.180000 | D148: 99.019997 | E148: 99.419998 | F148: 86.435364 | G148: 4427300 | H148: 20150803 16:00:00 | I148: 0.15191904 | J148: 0.16006266 | K148: 0.15103007 | L148: 0.15103007
A149: 2015-08-04 | B149: 99.470001 | C149: 99.519997 | D149: 98.769997 | E149: 99.139999 | F149: 86.191940 | G149: 2842100 | H149: 20150804 16:00:00 | I149: 0.15133168 | J149: 0.15196666 | K149: 0.14775992 | L149: 0.14952199
A150: 2015-08-05 | B150: 99.830002 | C150: 100.139999 | D150: 99.260002 | E150: 99.800003 | F150: 86.765762 | G150: 3560600 | H150: 20150805 16:00:00 | I150: 0.14977598 | J150: 0.15280801 | K150: 0.1460296 | L150: 0.14864889
A151: 2015-08-06 | B151: 99.720001 | C151: 100.180000 | D151: 99.209999 | E151: 99.349998 | F151: 86.374512 | G151: 6740200 | H151: 20150806 16:00:00 | I151: 0.14879176 | J151: 0.16249146 | K151: 0.14815678 | L151: 0.16095164
A152: 2015-08-07 | B152: 99.290001 | C152: 99.419998 | D152: 98.449997 | E152: 98.919998 | F152: 86.000679 | G152: 3463700 | H152: 20150807 16:00:00 | I152: 0.16095164 | J152: 0.16374555 | K152: 0.15617341 | L152: 0.15617341
A153: 2015-08-10 | B153: 99.489998 | C153: 99.949997 | D153: 98.870003 | E153: 99.389999 | F153: 86.409302 | G153: 3994500 | H153: 20150810 16:00:00 | I153: 0.1556813 | J153: 0.16646009 | K153: 0.1556813 | L153: 0.15855458
A154: 2015-08-11 | B154: 98.690002 | C154: 99.160004 | D154: 98.400002 | E154: 98.809998 | F154: 85.905029 | G154: 3585000 | H154: 20150811 16:00:00 | I154: 0.15863396 | J154: 0.16509488 | K154: 0.15863396 | L154: 0.16271371
A155: 2015-08-12 | B155: 98.269997 | C155: 98.430000 | D155: 97.230003 | E155: 98.279999 | F155: 85.444283 | G155: 4167100 | H155: 20150812 16:00:00 | I155: 0.16280895 | J155: 0.1781596 | K155: 0.16280895 | L155: 0.16796817
A156: 2015-08-13 | B156: 98.070000 | C156: 99.820000 | D156: 97.989998 | E156: 99.370003 | F156: 86.391914 | G156: 4636400 | H156: 20150813 16:00:00 | I156: 0.16804754 | J156: 0.17341312 | K156: 0.16309469 | L156: 0.16619022
A157: 2015-08-14 | B157: 99.050003 | C157: 99.559998 | D157: 98.720001 | E157: 99.269997 | F157: 86.304962 | G157: 3185600 | H157: 20150814 16:00:00 | I157: 0.16676171 | J157: 0.16906351 | K157: 0.16163424 | L157: 0.16334869
A158: 2015-08-17 | B158: 99.000000 | C158: 100.910004 | D158: 98.919998 | E158: 100.660004 | F158: 87.513420 | G158: 5204100 | H158: 20150817 16:00:00 | I158: 0.16669821 | J158: 0.17549268 | K158: 0.16669821 | L158: 0.16876189
A159: 2015-08-18 | B159: 100.000000 | C159: 101.440002 | D159: 100.000000 | E159: 100.760002 | F159: 87.600365 | G159: 4257300 | H159: 20150818 16:00:00 | I159: 0.16923813 | J159: 0.21900471 | K159: 0.16690458 | L159: 0.18579524
A160: 2015-08-19 | B160: 100.449997 | C160: 101.879997 | D160: 100.190002 | E160: 101.099998 | F160: 87.895958 | G160: 5989000 | H160: 20150819 16:00:00 | I160: 0.18628735 | J160: 0.19308164 | K160: 0.17761987 | L160: 0.18563649
A161: 2015-08-20 | B161: 100.730003 | C161: 101.000000 | D161: 99.739998 | E161: 99.760002 | F161: 86.730988 | G161: 6668000 | H161: 20150820 16:00:00 | I161: 0.18595399 | J161: 0.20065378 | K161: 0.18595399 | L161: 0.19903458
A162: 2015-08-21 | B162: 99.379997 | C162: 99.389999 | D162: 97.129997 | E162: 97.129997 | F162: 84.444473 | G162: 10980000 | H162: 20150821 16:00:00 | I162: 0.19854247 | J162: 0.23568882 | K162: 0.19854247 | L162: 0.23473635
A163: 2015-08-24 | B163: 91.580002 | C163: 95.879997 | D163: 87.500000 | E163: 92.870003 | F163: 80.740829 | G163: 15074800 | H163: 20150824 16:00:00 | I163: 0.23243454 | J163: 0.37771804 | K163: 0.23243454 | L163: 0.31336279
A164: 2015-08-25 | B164: 95.470001 | C164: 95.480003 | D164: 91.029999 | E164: 91.209999 | F164: 79.297630 | G164: 11468800 | H164: 20150825 16:00:00 | I164: 0.31266431 | J164: 0.31266431 | K164: 0.24408643 | L164: 0.26311997
A165: 2015-08-26 | B165: 92.930000 | C165: 95.199997 | D165: 91.470001 | E165: 95.150002 | F165: 82.723076 | G165: 16439800 | H165: 20150826 16:00:00 | I165: 0.2628501 | J165: 0.28201063 | K165: 0.25399213 | L165: 0.25534146
A166: 2015-08-27 | B166: 95.879997 | C166: 97.370003 | D166: 95.570000 | E166: 97.330002 | F166: 84.618340 | G166: 10187100 | H166: 20150827 16:00:00 | I166: 0.25480173 | J166: 0.25480173 | K166: 0.2314027 | L166: 0.24216562
A167: 2015-08-28 | B167: 96.050003 | C167: 96.660004 | D167: 95.790001 | E167: 96.250000 | F167: 84.416626 | G167: 5606000 | H167: 20150828 16:00:00 | I167: 0.23668891 | J167: 0.23957807 | K167: 0.23278378 | L167: 0.23699053
A168: 2015-08-31 | B168: 95.769997 | C168: 95.879997 | D168: 94.849998 | E168: 95.019997 | F168: 83.337814 | G168: 5086600 | H168: 20150831 16:00:00 | I168: 0.23479985 | J168: 0.24562626 | K168: 0.23222818 | L168: 0.23352989
A169: 2015-09-01 | B169: 92.769997 | C169: 94.279999 | D169: 92.599998 | E169: 93.470001 | F169: 81.978401 | G169: 7308400 | H169: 20150901 16:00:00 | I169: 0.23335527 | J169: 0.2659615 | K169: 0.23335527 | L169: 0.2659615
A170: 2015-09-02 | B170: 95.629997 | C170: 96.120003 | D170: 94.550003 | E170: 96.040001 | F170: 84.232422 | G170: 6908100 | H170: 20150902 16:00:00 | I170: 0.26554877 | J170: 0.26554877 | K170: 0.23187894 | L170: 0.23491097
A171: 2015-09-03 | B171: 96.800003 | C171: 97.430000 | D171: 95.580002 | E171: 96.010002 | F171: 84.206100 | G171: 6313900 | H171: 20150903 16:00:00 | I171: 0.23472047 | J171: 0.23472047 | K171: 0.21011499 | L171: 0.21862372
A172: 2015-09-04 | B172: 95.050003 | C172: 95.580002 | D172: 94.309998 | E172: 94.849998 | F172: 83.188736 | G172: 4429100 | H172: 20150904 16:00:00 | I172: 0.2185761 | J172: 0.23306952 | K172: 0.2185761 | L172: 0.22570375
A173: 2015-09-08 | B173: 96.309998 | C173: 96.879997 | D173: 95.489998 | E173: 96.779999 | F173: 84.881454 | G173: 5771100 | H173: 20150908 16:00:00 | I173: 0.22002068 | J173: 0.22302096 | K173: 0.20324132 | L173: 0.20378106
A174: 2015-09-09 | B174: 97.290001 | C174: 97.389999 | D174: 95.220001 | E174: 95.430000 | F174: 83.697433 | G174: 5129400 | H174: 20150909 16:00:00 | I174: 0.20376518 | J174: 0.21252791 | K174: 0.19605017 | L174: 0.21252791
A175: 2015-09-10 | B175: 94.959999 | C175: 95.849998 | D175: 94.750000 | E175: 95.250000 | F175: 83.539566 | G175: 6210800 | H175: 20150910 16:00:00 | I175: 0.21240092 | J175: 0.21879834 | K175: 0.20930539 | L175: 0.21494084
A176: 2015-09-11 | B176: 95.470001 | C176: 97.419998 | D176: 95.260002 | E176: 97.410004 | F176: 85.434006 | G176: 6656300 | H176: 20150911 16:00:00 | I176: 0.21487734 | J176: 0.21514721 | K176: 0.20459066 | L176: 0.20578125
A177: 2015-09-14 | B177: 97.360001 | C177: 97.660004 | D177: 96.629997 | E177: 96.970001 | F177: 85.048088 | G177: 4557200 | H177: 20150914 16:00:00 | I177: 0.20582887 | J177: 0.21219455 | K177: 0.20201899 | L177: 0.2031937
A178: 2015-09-15 | B178: 97.290001 | C178: 98.589996 | D178: 96.739998 | E178: 98.190002 | F178: 86.118095 | G178: 5142600 | H178: 20150915 16:00:00 | I178: 0.20297146 | J178: 0.20560663 | K178: 0.19000198 | L178: 0.1911767
A179: 2015-09-16 | B179: 98.650002 | C179: 98.739998 | D179: 97.529999 | E179: 98.690002 | F179: 86.556641 | G179: 5198700 | H179: 20150916 16:00:00 | I179: 0.19097033 | J179: 0.19462147 | K179: 0.18414429 | L179: 0.18517613
A180: 2015-09-17 | B180: 98.570000 | C180: 98.970001 | D180: 97.389999 | E180: 97.839996 | F180: 85.811142 | G180: 7955000 | H180: 20150917 16:00:00 | I180: 0.18539838 | J180: 0.1917958 | K180: 0.17496883 | L180: 0.18201711
A181: 2015-09-18 | B181: 96.820000 | C181: 97.699997 | D181: 96.250000 | E181: 97.050003 | F181: 85.118256 | G181: 10492700 | H181: 20150918 16:00:00 | I181: 0.1837633 | J181: 0.19733601 | K181: 0.1837633 | L181: 0.19387536
A182: 2015-09-21 | B182: 97.480003 | C182: 98.169998 | D182: 97.010002 | E182: 97.900002 | F182: 85.863747 | G182: 4543500 | H182: 20150921 16:00:00 | I182: 0.20097127 | J182: 0.20097127 | K182: 0.18804942 | L182: 0.19404998
A183: 2015-09-22 | B183: 97.120003 | C183: 98.080002 | D183: 96.709999 | E183: 97.199997 | F183: 85.249809 | G183: 6254500 | H183: 20150922 16:00:00 | I183: 0.19519295 | J183: 0.21394074 | K183: 0.19519295 | L183: 0.20762269
A184: 2015-09-23 | B184: 97.239998 | C184: 97.849998 | D184: 97.010002 | E184: 97.379997 | F184: 85.407684 | G184: 3035300 | H184: 20150923 16:00:00 | I184: 0.20865453 | J184: 0.21313114 | K184: 0.20700358 | L184: 0.20700358
A185: 2015-09-24 | B185: 96.830002 | C185: 97.430000 | D185: 96.300003 | E185: 97.290001 | F185: 85.328751 | G185: 4138800 | H185: 20150924 16:00:00 | I185: 0.20787668 | J185: 0.22302096 | K185: 0.20787668 | L185: 0.21208343
A186: 2015-09-25 | B186: 97.889999 | C186: 98.699997 | D186: 97.459999 | E186: 97.589996 | F186: 85.591858 | G186: 4825800 | H186: 20150925 16:00:00 | I186: 0.21190881 | J186: 0.21190881 | K186: 0.19751063 | L186: 0.21000386
A187: 2015-09-28 | B187: 97.000000 | C187: 97.739998 | D187: 95.779999 | E187: 95.959999 | F187: 84.162270 | G187: 6609800 | H187: 20150928 16:00:00 | I187: 0.20881328 | J187: 0.23481572 | K187: 0.20881328 | L187: 0.23176781
A188: 2015-09-29 | B188: 97.459999 | C188: 97.790001 | D188: 96.809998 | E188: 97.480003 | F188: 85.495407 | G188: 6944800 | H188: 20150929 16:00:00 | I188: 0.23137095 | J188: 0.23337114 | K188: 0.22167163 | L188: 0.22616411
A189: 2015-09-30 | B189: 98.209999 | C189: 98.699997 | D189: 97.760002 | E189: 98.529999 | F189: 86.416306 | G189: 5517600 | H189: 20150930 16:00:00 | I189: 0.22594187 | J189: 0.22594187 | K189: 0.21071822 | L189: 0.21071822
A190: 2015-10-01 | B190: 98.500000 | C190: 99.000000 | D190: 97.669998 | E190: 98.779999 | F190: 86.635551 | G190: 4456600 | H190: 20151001 16:00:00 | I190: 0.21051185 | J190: 0.21416299 | K190: 0.20428904 | L190: 0.21079759
A191: 2015-10-02 | B191: 97.330002 | C191: 99.809998 | D191: 97.129997 | E191: 99.790001 | F191: 87.521378 | G191: 4400800 | H191: 20151002 16:00:00 | I191: 0.21067059 | J191: 0.22008418 | K191: 0.20554313 | L191: 0.20590824
A192: 2015-10-05 | B192: 100.269997 | C192: 101.639999 | D192: 100.199997 | E192: 101.169998 | F192: 88.731735 | G192: 6501600 | H192: 20151005 16:00:00 | I192: 0.20520976 | J192: 0.20530501 | K192: 0.1944786 | L192: 0.1952247
A193: 2015-10-06 | B193: 101.260002 | C193: 102.300003 | D193: 101.160004 | E193: 101.900002 | F193: 89.371971 | G193: 7252400 | H193: 20151006 16:00:00 | I193: 0.19495483 | J193: 0.20292383 | K193: 0.19495483 | L193: 0.20109827
A194: 2015-10-07 | B194: 100.750000 | C194: 101.900002 | D194: 100.339996 | E194: 101.769997 | F194: 89.257965 | G194: 6497100 | H194: 20151007 16:00:00 | I194: 0.2006379 | J194: 0.22129064 | K194: 0.2006379 | L194: 0.21736964
A195: 2015-10-08 | B195: 101.849998 | C195: 103.470001 | D195: 101.769997 | E195: 102.949997 | F195: 90.292885 | G195: 8218900 | H195: 20151008 16:00:00 | I195: 0.21709977 | J195: 0.22221136 | K195: 0.21133732 | L195: 0.21367088
A196: 2015-10-09 | B196: 103.000000 | C196: 103.440002 | D196: 102.269997 | E196: 102.760002 | F196: 90.126236 | G196: 5756600 | H196: 20151009 16:00:00 | I196: 0.213782 | J196: 0.213782 | K196: 0.19966956 | L196: 0.20006642
A197: 2015-10-12 | B197: 102.680000 | C197: 103.309998 | D197: 102.510002 | E197: 103.239998 | F197: 90.547241 | G197: 3448200 | H197: 20151012 16:00:00 | I197: 0.20073315 | J197: 0.20808305 | K197: 0.19681215 | L197: 0.19700264
A198: 2015-10-13 | B198: 102.849998 | C198: 103.510002 | D198: 102.629997 | E198: 103.379997 | F198: 90.670013 | G198: 4697300 | H198: 20151013 16:00:00 | I198: 0.19708202 | J198: 0.20022517 | K198: 0.18998611 | L198: 0.1919228
A199: 2015-10-14 | B199: 104.150002 | C199: 104.930000 | D199: 102.430000 | E199: 102.820000 | F199: 90.178871 | G199: 9093000 | H199: 20151014 16:00:00 | I199: 0.19249428 | J199: 0.23697465 | K199: 0.18752556 | L199: 0.23435536
A200: 2015-10-15 | B200: 102.570000 | C200: 105.199997 | D200: 101.599998 | E200: 103.660004 | F200: 90.915611 | G200: 10168300 | H200: 20151015 16:00:00 | I200: 0.23438711 | J200: 0.24916628 | K200: 0.21108333 | L200: 0.24916628
... 1227 more rows

Sheet Grafy

Sheet List1
A1: -nic-
A2: pondělí
A3: úterý
A4: středa
A5: čtvrtek
A6: pátek
